Workbook

Sheet ST
C2: CLASSIFICAÇÃO OFICIAL DO CAMPEONATO BRASILEIRO 2013 DE ARRANCADA 402 M.
C5: Evento | D5: 1º | H5: 2º | L5: 3º | P5: 4º | T5: 5º | X5: 6º
C6: Local | D6: VELOPARK | H6: Curitiba | L6: VELOPARK | P6: VELOPARK | X6: VELOPARK
C7: Data | D7: 15 a 17/03 | H7: 03 a 05/05/2013 | L7: 16 a 18/08/2013 | P7: 27 a 29/09/2013 | X7: 17/11
A9: STANDARD - ST | D9: bonus | E9: bonus | F9: bonus | H9: bonus | I9: bonus | J9: bonus | L9: bonus | M9: bonus | N9: bonus | P9: bonus | Q9: bonus | R9: bonus | T9: bonus | U9: bonus | V9: bonus | X9: bonus | Y9: bonus | Z9: bonus
A10: POS | B10: PILOTO | C10: Nº | D10: partic. | E10: record | F10: classif. | G10: Prova | H10: partic. | I10: record | J10: classif. | K10: Prova | L10: partic. | M10: record | N10: classif. | O10: Prova | P10: partic. | Q10: record | R10: classif. | S10: Prova | T10: partic. | U10: record | V10: classif. | W10: Prova | X10: partic. | Y10: record | Z10: classif. | AA10: Prova | AB10: TOTAL
A11: 1º | B11: CLÓVIS WAECHTER | C11: 98 | D11: x | F11: 75 | G11: 100 | H11: 0 | J11: 0 | L11: x | N11: 80 | O11: 100 | P11: X | R11: 80 | S11: 40 | X11: 40 | Z11: 160 | AA11: 40 | AB11: =SUM(D11:AA11) -> 715
A12: 2º | B12: EDUARDO ANDRETA | C12: 555 | D12: X | F12: 65 | G12: 20 | H12: 0 | J12: 0 | L12: x | N12: 55 | O12: 20 | P12: X | R12: 65 | S12: 80 | X12: 40 | Z12: 140 | AA12: 80 | AB12: 565
A13: 3º | B13: LEANDRO SCHULTZ | C13: 96 | D13: 0 | F13: 0 | G13: 0 | H13: 0 | J13: 0 | L13: x | N13: 70 | O13: 60 | P13: X | R13: 75 | S13: 60 | X13: 25 | Z13: 150 | AA13: 80 | AB13: 520
A14: 4º | B14: MARCIO SOUZA | C14: 333 | D14: 0 | F14: 0 | G14: 0 | H14: 0 | J14: 0 | L14: X | N14: 35 | O14: 80 | P14: X | R14: 60 | S14: 40 | X14: 25 | Z14: 110 | AA14: 160 | AB14: 510
A15: 5º | B15: OBERDAN TAETI | C15: 77 | D15: 0 | F15: 0 | G15: 0 | H15: 0 | J15: 0 | L15: X | N15: 65 | O15: 60 | P15: X | R15: 50 | S15: 0 | X15: 25 | Z15: 100 | AA15: 120 | AB15: 420
A16: 6º | B16: VICENTE PELEGRINI | C16: 89 | D16: X | F16: 55 | G16: 20 | H16: 0 | J16: 0 | L16: X | N16: 45 | O16: 20 | P16: X | R16: 45 | S16: 20 | X16: 40 | Z16: 30 | AA16: 120 | AB16: 395
A17: 7º | B17: RODRIGO LAMAISON | C17: 15 | D17: x | F17: 70 | G17: 40 | H17: 0 | J17: 0 | L17: 0 | N17: 0 | O17: 0 | P17: X | R17: 55 | S17: 100 | X17: 25 | Z17: 90 | AA17: 0 | AB17: 380
A18: 8º | B18: ROBERTO PORTANTIOLO | C18: 121 | D18: 0 | F18: 0 | G18: 0 | H18: 0 | J18: 0 | L18: X | N18: 60 | O18: 20 | P18: X | R18: 25 | S18: 0 | X18: 25 | Z18: 130 | AA18: 80 | AB18: 340
A19: 9º | B19: JOSE LEONEL | C19: 30 | D19: 0 | F19: 0 | G19: 0 | H19: 0 | J19: 0 | L19: 0 | N19: 0 | O19: 0 | P19: 0 | R19: 0 | S19: 0 | X19: 10 | Z19: 120 | AA19: 200 | AB19: 330
A20: 10º | B20: PAULO GONDAWSKI | C20: 28 | D20: 0 | F20: 0 | G20: 0 | H20: 0 | J20: 0 | L20: X | N20: 75 | O20: 20 | P20: 0 | R20: 0 | S20: 0 | X20: 15 | Z20: 70 | AA20: 40 | AB20: 220
A21: 11º | B21: EDUARDO MONTANO | C21: 333 | D21: X | F21: 50 | G21: 20 | H21: 0 | J21: 0 | L21: X | N21: 25 | O21: 0 | P21: 0 | R21: 0 | S21: 0 | X21: 25 | Z21: 40 | AA21: 40 | AB21: 200
A22: 12º | B22: MARCOS RIBEIRO | C22: 335 | D22: 0 | F22: 0 | G22: 0 | H22: X | I22: 20 | J22: 80 | L22: 10 | N22: 40 | O22: 40 | P22: 0 | R22: 0 | S22: 0 | X22: 0 | Z22: 0 | AA22: 0 | AB22: 190
A23: 13º | B23: ALEXANDRE BETINE | C23: 120 | D23: 5 | E23: 20 | F23: 80 | G23: 80 | H23: 0 | J23: 0 | L23: 0 | N23: 0 | O23: 0 | P23: 0 | R23: 0 | S23: 0 | X23: 0 | Z23: 0 | AA23: 0 | AB23: 185
A24: 14º | B24: ELIZEU BUZATO | C24: 82 | D24: X | F24: 60 | G24: 40 | H24: 0 | J24: 0 | L24: 0 | N24: 0 | O24: 0 | P24: 10 | R24: 40 | S24: 20 | X24: 0 | Z24: 0 | AA24: 0 | AB24: 170
A25: 15º | B25: RAFAEL PERONDI | C25: 777 | D25: 0 | F25: 0 | G25: 0 | H25: 0 | J25: 0 | L25: X | N25: 15 | O25: 20 | P25: 0 | R25: 0 | S25: 0 | X25: 15 | Z25: 50 | AA25: 40 | AB25: 140
A26: 16º | B26: JESUM KLEIN | C26: 107 | D26: 0 | F26: 0 | G26: 0 | H26: 0 | J26: 0 | L26: 0 | N26: 0 | O26: 0 | P26: 0 | R26: 0 | S26: 0 | X26: 10 | Z26: 80 | AA26: 40 | AB26: 130
A27: 17º | B27: ALEXANDRE PAZICZEC | C27: 21 | D27: X | F27: 45 | G27: 0 | H27: 0 | J27: 0 | L27: 10 | N27: 30 | O27: 40 | P27: 0 | R27: 0 | S27: 0 | X27: 0 | Z27: 0 | AA27: 0 | AB27: 125
A28: 18º | B28: CHARLAN ZECHOW | C28: 3 | D28: 0 | F28: 0 | G28: 0 | H28: 0 | J28: 0 | L28: 0 | N28: 0 | O28: 0 | P28: 5 | R28: 70 | S28: 40 | X28: 0 | Z28: 0 | AA28: 0 | AB28: 115
A29: 19º | B29: MARCIO LAMAISON | C29: 27 | D29: 0 | F29: 0 | G29: 0 | H29: 0 | J29: 0 | L29: 0 | N29: 0 | O29: 0 | P29: 0 | R29: 0 | S29: 0 | X29: 10 | Z29: 60 | AA29: 40 | AB29: 110
A30: 20º | B30: VLADIMIR PÓVOA | C30: 96 | D30: 5 | F30: 40 | G30: 60 | H30: 0 | J30: 0 | L30: 0 | N30: 0 | O30: 0 | P30: 0 | R30: 0 | S30: 0 | X30: 0 | Z30: 0 | AA30: 0 | AB30: 105
A31: 21º | B31: ADILSON PRIZYBICIEN | C31: 318 | D31: 0 | F31: 0 | G31: 0 | H31: 5 | J31: 75 | L31: 0 | N31: 0 | O31: 0 | P31: 0 | R31: 0 | S31: 0 | X31: 0 | Z31: 0 | AA31: 0 | AB31: 80
A32: 22º | B32: ODIL NAZARI | C32: 68 | D32: 0 | F32: 0 | G32: 0 | H32: 0 | J32: 0 | L32: 5 | N32: 50 | O32: 20 | P32: 0 | R32: 0 | S32: 0 | X32: 0 | Z32: 0 | AA32: 0 | AB32: 75
A33: 23º | B33: HENRIQUE LINK | C33: 777 | D33: 0 | F33: 0 | G33: 0 | H33: 0 | J33: 0 | L33: 0 | N33: 0 | O33: 0 | P33: 5 | R33: 35 | S33: 20 | X33: 0 | Z33: 0 | AA33: 0 | AB33: 60
A34: 24º | B34: GUSTAVO SIMON | C34: 2907 | D34: 0 | F34: 0 | G34: 0 | H34: 0 | J34: 0 | L34: 0 | N34: 0 | O34: 0 | P34: 5 | R34: 30 | S34: 20 | X34: 0 | Z34: 0 | AA34: 0 | AB34: 55
A35: 25º | B35: WELLINGTON BARRACO | C35: 690 | D35: 0 | F35: 0 | G35: 0 | H35: 0 | J35: 0 | L35: 5 | N35: 10 | O35: 40 | P35: 0 | R35: 0 | S35: 0 | X35: 0 | Z35: 0 | AA35: 0 | AB35: 55
A36: 26º | B36: LIELSON STEFANON | C36: 25 | D36: 0 | F36: 0 | G36: 0 | H36: 0 | J36: 0 | L36: 5 | N36: 0 | O36: 0 | P36: 0 | R36: 0 | S36: 0 | X36: 0 | Z36: 0 | AA36: 0 | AB36: 5
A37: 27º | AB37: 0
A38: 28º | AB38: 0
A39: 29º | AB39: 0
A40: 30º | AB40: 0
A41: 31º | AB41: 0
A42: 32º | AB42: 0
A43: 33º | AB43: =SUM(D43:AA43) -> 0
A44: 34º | AB44: 0
A45: 35º | AB45: 0
A46: 36º | AB46: 0
A47: 37º | AB47: 0
A48: 38º | AB48: 0
A49: 39º | AB49: 0
A50: 40º | AB50: 0
A51: 41º | AB51: 0
A52: 42º | AB52: 0
A53: 43º | AB53: 0
A54: 44º | AB54: 0
A55: 45º | AB55: 0
A56: 46º | AB56: 0
A57: 47º | AB57: 0
A58: 48º | AB58: 0
A59: 49º | AB59: 0
A60: 50º | AB60: 0
A61: 51º | AB61: 0
A62: 52º | AB62: 0
A63: 53º | AB63: 0
A64: 54º | AB64: 0
A65: 55º | AB65: 0
A66: 56º | AB66: 0
A67: 57º | AB67: 0
A68: 58º | AB68: 0
A69: 59º | AB69: 0
A70: 60º | AB70: 0
A71: 61º | AB71: 0
A72: 62º | AB72: 0
A73: 63º | AB73: 0
A74: 64º | AB74: 0
A75: 65º | AB75: =SUM(D75:AA75) -> 0
A76: 66º | AB76: 0
A77: 67º | AB77: 0
A78: 68º | AB78: 0
A79: 69º | AB79: 0
A80: 70º | AB80: 0
A81: 71º | AB81: 0
A82: 72º | AB82: 0
A83: 73º | AB83: 0
A84: 74º | AB84: 0
A85: 75º | AB85: 0
A86: 76º | AB86: 0
A87: 77º | AB87: 0
A88: 78º | AB88: 0
A89: 79º | AB89: 0
A90: 80º | AB90: 0
A91: 81º | AB91: 0
A92: 82º | AB92: 0
A93: 83º | AB93: 0
A94: 84º | AB94: 0
A95: 85º | AB95: 0
A96: 86º | AB96: 0
A97: 87º | AB97: 0
A98: 88º | AB98: 0
A99: 89º | AB99: 0
A100: 90º | AB100: 0
B103: LEGENDA
B104: BONIFICAÇÃO POR ETAPA PARTICIPADA
B105: PARTICIPOU DE 1 ETAPA= | D105: 5
B106: PARTICIPOU DE 2 ETAPAS= | D106: 1X+10
B107: PARTICIPOU DE 3 ETAPAS= | D107: 2X+15
B108: PARTICIPOU DE 4 ETAPAS= | D108: 3X+25
B109: PARTICIPOU DE 5 ETAPAS | D109: 4X+40
B110: PARTICIPOU DE 6 ETAPAS= | D110: 5X+50
B111: BONUS RECORD | D111: 20
B112: PROVA EM BRANCO | D112: NÃO TEVE ELIMINATORIAS

Sheet DO
C2: CLASSIFICAÇÃO OFICIAL DO CAMPEONATO BRASILEIRO 2013 DE ARRANCADA 402 M.
C5: Evento | D5: 1º | H5: 2º | L5: 3º | P5: 4º | T5: 5º | X5: 6º
C6: Local | D6: VELOPARK | H6: Curitiba | L6: VELOPARK | P6: VELOPARK | X6: VELOPARK
C7: Data | D7: 15 a 17/03 | H7: 03 a 05/05/2013 | L7: 16 a 18/08/2013 | P7: 27 a 29/09/2013 | X7: 17/11
A9: DIANTEIRA ORIGINAL DO | D9: bonus | E9: bonus | F9: bonus | H9: bonus | I9: bonus | J9: bonus | L9: bonus | M9: bonus | N9: bonus | P9: bonus | Q9: bonus | R9: bonus | T9: bonus | U9: bonus | V9: bonus | X9: bonus | Y9: bonus | Z9: bonus
A10: POS | B10: PILOTO | C10: Nº | D10: partic. | E10: record | F10: classif. | G10: Prova | H10: partic. | I10: record | J10: classif. | K10: Prova | L10: partic. | M10: record | N10: classif. | O10: Prova | P10: partic. | Q10: record | R10: classif. | S10: Prova | T10: partic. | U10: record | V10: classif. | W10: Prova | X10: partic. | Y10: record | Z10: classif. | AA10: Prova | AB10: TOTAL
A11: 1º | B11: JULIO DALLA ROSA | C11: 42 | D11: x | E11: 20 | F11: 80 | G11: 100 | H11: 0 | J11: 0 | L11: X | M11: 20 | N11: 75 | O11: 100 | P11: X | Q11: 20 | R11: 75 | S11: 80 | X11: 40 | Z11: 150 | AA11: 200 | AB11: =SUM(D11:AA11) -> 960
A12: 2º | B12: MALTON PORTO | C12: 177 | D12: 0 | F12: 0 | G12: 0 | H12: 0 | J12: 0 | L12: X | N12: 70 | O12: 60 | P12: X | R12: 80 | S12: 100 | X12: 25 | Y12: 20 | Z12: 160 | AA12: 160 | AB12: 675
A13: 3º | B13: IVO LEAL | C13: 79 | D13: x | F13: 75 | G13: 80 | H13: 0 | J13: 0 | L13: X | N13: 65 | O13: 60 | P13: X | R13: 70 | S13: 60 | X13: 40 | Z13: 120 | AA13: 80 | AB13: 650
A14: 4º | B14: PAULO SERGIO | C14: 728 | D14: 0 | F14: 0 | G14: 0 | H14: 0 | J14: 0 | L14: 0 | N14: 0 | O14: 0 | P14: 0 | R14: 0 | S14: 0 | X14: 10 | Z14: 130 | AA14: 120 | AB14: 260
A15: 5º | B15: WELLINGTON MARCELINO | C15: 2301 | D15: 0 | F15: 0 | G15: 0 | H15: 0 | J15: 0 | L15: 0 | N15: 0 | O15: 0 | P15: 0 | R15: 0 | S15: 0 | X15: 10 | Z15: 140 | AA15: 80 | AB15: 230
A16: 6º | B16: ALEXANDRE BETINE | C16: 120 | D16: 0 | F16: 0 | G16: 0 | H16: 0 | J16: 0 | L16: 5 | N16: 80 | O16: 80 | P16: 0 | R16: 0 | S16: 0 | X16: 0 | Z16: 0 | AA16: 0 | AB16: 165
A17: 7º | B17: PAULO GONDAWSKI | C17: 28 | D17: 5 | F17: 70 | G17: 60 | H17: 0 | J17: 0 | L17: 0 | N17: 0 | O17: 0 | P17: 0 | R17: 0 | S17: 0 | X17: 0 | Z17: 0 | AA17: 0 | AB17: 135
A18: 8º | B18: ROMULO O. BRAGA | C18: 10 | D18: 5 | F18: 65 | G18: 60 | H18: 0 | J18: 0 | L18: 0 | N18: 0 | O18: 0 | P18: 0 | R18: 0 | S18: 0 | X18: 0 | Z18: 0 | AA18: 0 | AB18: 130
A19: 9º | B19: ALESSANDRO BARRANCO | C19: 26 | D19: 0 | F19: 0 | G19: 0 | H19: 5 | J19: 80 | L19: 0 | N19: 0 | O19: 0 | P19: 0 | R19: 0 | S19: 0 | X19: 0 | Z19: 0 | AA19: 0 | AB19: 85
A20: 10º | AB20: 0
A21: 11º | AB21: 0
A22: 12º | AB22: 0
A23: 13º | AB23: 0
A24: 14º | AB24: 0
A25: 15º | AB25: 0
A26: 16º | AB26: 0
A27: 17º | AB27: 0
A28: 18º | AB28: 0
A29: 19º | AB29: 0
A30: 20º | AB30: 0
A31: 21º | AB31: 0
A32: 22º | AB32: 0
A33: 23º | AB33: 0
A34: 24º | AB34: 0
A35: 25º | AB35: 0
A36: 26º | AB36: 0
A37: 27º | AB37: 0
A38: 28º | AB38: 0
A39: 29º | AB39: 0
A40: 30º | AB40: 0
A41: 31º | AB41: 0
A42: 32º | AB42: 0
A43: 33º | AB43: =SUM(D43:AA43) -> 0
A44: 34º | AB44: 0
A45: 35º | AB45: 0
A46: 36º | AB46: 0
A47: 37º | AB47: 0
A48: 38º | AB48: 0
A49: 39º | AB49: 0
A50: 40º | AB50: 0
A51: 41º | AB51: 0
A52: 42º | AB52: 0
A53: 43º | AB53: 0
A54: 44º | AB54: 0
A55: 45º | AB55: 0
A56: 46º | AB56: 0
A57: 47º | AB57: 0
A58: 48º | AB58: 0
A59: 49º | AB59: 0
A60: 50º | AB60: 0
A61: 51º | AB61: 0
A62: 52º | AB62: 0
A63: 53º | AB63: 0
A64: 54º | AB64: 0
A65: 55º | AB65: 0
A66: 56º | AB66: 0
A67: 57º | AB67: 0
A68: 58º | AB68: 0
A69: 59º | AB69: 0
A70: 60º | AB70: 0
A71: 61º | AB71: 0
A72: 62º | AB72: 0
A73: 63º | AB73: 0
A74: 64º | AB74: 0
A75: 65º | AB75: =SUM(D75:AA75) -> 0
A76: 66º | AB76: 0
A77: 67º | AB77: 0
A78: 68º | AB78: 0
A79: 69º | AB79: 0
A80: 70º | AB80: 0
A81: 71º | AB81: 0
A82: 72º | AB82: 0
A83: 73º | AB83: 0
A84: 74º | AB84: 0
A85: 75º | AB85: 0
A86: 76º | AB86: 0
A87: 77º | AB87: 0
A88: 78º | AB88: 0
A89: 79º | AB89: 0
A90: 80º | AB90: 0
A91: 81º | AB91: 0
A92: 82º | AB92: 0
A93: 83º | AB93: 0
A94: 84º | AB94: 0
A95: 85º | AB95: 0
A96: 86º | AB96: 0
A97: 87º | AB97: 0
A98: 88º | AB98: 0
A99: 89º | AB99: 0
A100: 90º | AB100: 0
B102: LEGENDA
B103: BONIFICAÇÃO POR ETAPA PARTICIPADA
B104: PARTICIPOU DE 1 ETAPA= | D104: 5
B105: PARTICIPOU DE 2 ETAPAS= | D105: 1X+10
B106: PARTICIPOU DE 3 ETAPAS= | D106: 2X+15
B107: PARTICIPOU DE 4 ETAPAS= | D107: 3X+25
B108: PARTICIPOU DE 5 ETAPAS | D108: 4X+40
B109: PARTICIPOU DE 6 ETAPAS= | D109: 5X+50
B110: BONUS RECORD | D110: 20
B111: PROVA EM BRANCO | D111: NÃO TEVE ELIMINATORIAS

Sheet TO
C2: CLASSIFICAÇÃO OFICIAL DO CAMPEONATO BRASILEIRO 2013 DE ARRANCADA 402 M.
C5: Evento | D5: 1º | H5: 2º | L5: 3º | P5: 4º | T5: 5º | X5: 6º
C6: Local | D6: VELOPARK | H6: Curitiba | L6: VELOPARK | P6: VELOPARK | X6: VELOPARK
C7: Data | D7: 15 a 17/03 | H7: 03 a 05/05/2013 | L7: 16 a 18/08/2013 | P7: 27 a 29/09/2013 | X7: 17/11
A9: TRASEIRA ORIGINAL -TO | D9: bonus | E9: bonus | F9: bonus | H9: bonus | I9: bonus | J9: bonus | L9: bonus | M9: bonus | N9: bonus | P9: bonus | Q9: bonus | R9: bonus | T9: bonus | U9: bonus | V9: bonus | X9: bonus | Y9: bonus | Z9: bonus
A10: POS | B10: PILOTO | C10: Nº | D10: partic. | E10: record | F10: classif. | G10: Prova | H10: partic. | I10: record | J10: classif. | K10: Prova | L10: partic. | M10: record | N10: classif. | O10: Prova | P10: partic. | Q10: record | R10: classif. | S10: Prova | T10: partic. | U10: record | V10: classif. | W10: Prova | X10: partic. | Y10: record | Z10: classif. | AA10: Prova | AB10: TOTAL
A11: 1º | B11: BRENO CASTAGNON | C11: 22 | D11: X | F11: 70 | G11: 40 | H11: X | J11: 70 | L11: X | N11: 55 | O11: 40 | P11: X | R11: 60 | S11: 60 | X11: 50 | Z11: 140 | AA11: 80 | AB11: =SUM(D11:AA11) -> 665
A12: 2º | B12: RAUL CORREIA | C12: 101 | D12: 0 | F12: 0 | G12: 0 | H12: X | J12: 75 | L12: X | N12: 80 | O12: 60 | P12: 0 | R12: 0 | S12: 0 | X12: 25 | Z12: 150 | AA12: 200 | AB12: 590
A13: 3º | B13: ALVARO DIAS | C13: 7 | D13: X | F13: 65 | G13: 0 | H13: 0 | J13: 0 | L13: X | N13: 65 | O13: 80 | P13: X | R13: 80 | S13: 100 | X13: 40 | Z13: 130 | AA13: 0 | AB13: 560
A14: 4º | B14: CLAUDIO CASTAGNON | C14: 12 | D14: X | F14: 55 | G14: 0 | H14: 0 | J14: 0 | L14: X | N14: 45 | O14: 0 | P14: X | R14: 70 | S14: 60 | X14: 40 | Z14: 160 | AA14: 120 | AB14: 550
A15: 5º | B15: THIAGO FERREIRA | C15: 200 | D15: X | E15: 20 | F15: 80 | G15: 100 | H15: X | I15: 20 | J15: 80 | L15: 15 | N15: 50 | O15: 100 | P15: 0 | R15: 0 | S15: 0 | X15: 0 | Z15: 0 | AA15: 0 | AB15: 465
A16: 6º | B16: ALEXANDRE KROEFF | C16: 308 | D16: 0 | F16: 0 | G16: 0 | H16: 0 | J16: 0 | L16: X | M16: 20 | N16: 75 | O16: 40 | P16: 0 | R16: 0 | S16: 0 | X16: 15 | Z16: 120 | AA16: 160 | AB16: 430
A17: 7º | B17: FRANSCISCO ZANETTI | C17: 70 | D17: 0 | F17: 0 | G17: 0 | H17: 0 | J17: 0 | L17: 0 | N17: 0 | O17: 0 | P17: X | R17: 45 | S17: 40 | X17: 15 | Z17: 110 | AA17: 120 | AB17: 330
A18: 8º | B18: ANDERSON CANANI | C18: 88 | D18: 0 | F18: 0 | G18: 0 | H18: 0 | J18: 0 | L18: X | N18: 70 | O18: 60 | P18: 10 | R18: 75 | S18: 80 | X18: 0 | Z18: 0 | AA18: 0 | AB18: 295
A19: 9º | B19: ISRAEL FONTANELLA | C19: 6767 | D19: 0 | F19: 0 | G19: 0 | H19: 0 | J19: 0 | L19: X | N19: 60 | O19: 40 | P19: 10 | R19: 65 | S19: 40 | X19: 0 | Z19: 0 | AA19: 0 | AB19: 215
A20: 10º | B20: LUCIANO PIUCO | C20: 76 | D20: 5 | F20: 75 | G20: 80 | H20: 0 | J20: 0 | L20: 0 | N20: 0 | O20: 0 | P20: 0 | R20: 0 | S20: 0 | X20: 0 | Z20: 0 | AA20: 0 | AB20: 160
A21: 11º | B21: PEDRO NUNES | C21: 1 | D21: 0 | F21: 0 | G21: 0 | H21: 0 | J21: 0 | L21: 0 | N21: 0 | O21: 0 | P21: 0 | R21: 0 | S21: 0 | X21: 10 | Z21: 100 | AA21: 0 | AB21: 110
A22: 12º | B22: ANDERSON HOSS | C22: 177 | D22: 0 | F22: 0 | G22: 0 | H22: 0 | J22: 0 | L22: 0 | N22: 0 | O22: 0 | P22: 5 | R22: 55 | S22: 40 | X22: 0 | Z22: 0 | AA22: 0 | AB22: 100
A23: 13º | B23: VITOR CASARIN | C23: 1818 | D23: 0 | F23: 0 | G23: 0 | H23: 0 | J23: 0 | L23: 0 | N23: 0 | O23: 0 | P23: 5 | R23: 50 | S23: 40 | X23: 0 | Z23: 0 | AA23: 0 | AB23: 95
A24: 14º | B24: DAVID AVILA | C24: 191 | D24: 0 | F24: 0 | G24: 0 | H24: 5 | J24: 65 | L24: 0 | N24: 0 | O24: 0 | P24: 0 | R24: 0 | S24: 0 | X24: 0 | Z24: 0 | AA24: 0 | AB24: 70
A25: 15º | B25: ALAN P. GIOVANELLA | C25: 177 | D25: 5 | F25: 60 | G25: 0 | H25: 0 | J25: 0 | L25: 0 | N25: 0 | O25: 0 | P25: 0 | R25: 0 | S25: 0 | X25: 0 | Z25: 0 | AA25: 0 | AB25: 65
A26: 16º | AB26: 0
A27: 17º | AB27: 0
A28: 18º | AB28: 0
A29: 19º | AB29: 0
A30: 20º | AB30: 0
A31: 21º | AB31: 0
A32: 22º | AB32: 0
A33: 23º | AB33: 0
A34: 24º | AB34: 0
A35: 25º | AB35: 0
A36: 26º | AB36: 0
A37: 27º | AB37: 0
A38: 28º | AB38: 0
A39: 29º | AB39: 0
A40: 30º | AB40: 0
A41: 31º | AB41: 0
A42: 32º | AB42: 0
A43: 33º | AB43: =SUM(D43:AA43) -> 0
A44: 34º | AB44: 0
A45: 35º | AB45: 0
A46: 36º | AB46: 0
A47: 37º | AB47: 0
A48: 38º | AB48: 0
A49: 39º | AB49: 0
A50: 40º | AB50: 0
A51: 41º | AB51: 0
A52: 42º | AB52: 0
A53: 43º | AB53: 0
A54: 44º | AB54: 0
A55: 45º | AB55: 0
A56: 46º | AB56: 0
A57: 47º | AB57: 0
A58: 48º | AB58: 0
A59: 49º | AB59: 0
A60: 50º | AB60: 0
A61: 51º | AB61: 0
A62: 52º | AB62: 0
A63: 53º | AB63: 0
A64: 54º | AB64: 0
A65: 55º | AB65: 0
A66: 56º | AB66: 0
A67: 57º | AB67: 0
A68: 58º | AB68: 0
A69: 59º | AB69: 0
A70: 60º | AB70: 0
A71: 61º | AB71: 0
A72: 62º | AB72: 0
A73: 63º | AB73: 0
A74: 64º | AB74: 0
A75: 65º | AB75: =SUM(D75:AA75) -> 0
A76: 66º | AB76: 0
A77: 67º | AB77: 0
A78: 68º | AB78: 0
A79: 69º | AB79: 0
A80: 70º | AB80: 0
A81: 71º | AB81: 0
A82: 72º | AB82: 0
A83: 73º | AB83: 0
A84: 74º | AB84: 0
A85: 75º | AB85: 0
A86: 76º | AB86: 0
A87: 77º | AB87: 0
A88: 78º | AB88: 0
A89: 79º | AB89: 0
A90: 80º | AB90: 0
A91: 81º | AB91: 0
A92: 82º | AB92: 0
A93: 83º | AB93: 0
A94: 84º | AB94: 0
A95: 85º | AB95: 0
A96: 86º | AB96: 0
A97: 87º | AB97: 0
A98: 88º | AB98: 0
A99: 89º | AB99: 0
A100: 90º | AB100: 0
B102: LEGENDA
B103: BONIFICAÇÃO POR ETAPA PARTICIPADA
B104: PARTICIPOU DE 1 ETAPA= | D104: 5
B105: PARTICIPOU DE 2 ETAPAS= | D105: 1X+10
B106: PARTICIPOU DE 3 ETAPAS= | D106: 2X+15
B107: PARTICIPOU DE 4 ETAPAS= | D107: 3X+25
B108: PARTICIPOU DE 5 ETAPAS | D108: 4X+40
B109: PARTICIPOU DE 6 ETAPAS= | D109: 5X+50
B110: BONUS RECORD | D110: 20
B111: PROVA EM BRANCO | D111: NÃO TEVE ELIMINATORIAS

Sheet DTC
C2: CLASSIFICAÇÃO OFICIAL DO CAMPEONATO BRASILEIRO 2013 DE ARRANCADA 402 M.
C5: Evento | D5: 1º | H5: 2º | L5: 3º | P5: 4º | T5: 5º | X5: 6º
C6: Local | D6: VELOPARK | H6: Curitiba | L6: VELOPARK | P6: VELOPARK | X6: VELOPARK
C7: Data | D7: 15 a 17/03 | H7: 03 a 05/05/2013 | L7: 16 a 18/08/2013 | P7: 27 a 29/09/2013 | X7: 17/11
A9: DIANTEIRA TURBO C - DTC | D9: bonus | E9: bonus | F9: bonus | H9: bonus | I9: bonus | J9: bonus | L9: bonus | M9: bonus | N9: bonus | P9: bonus | Q9: bonus | R9: bonus | T9: bonus | U9: bonus | V9: bonus | X9: bonus | Y9: bonus | Z9: bonus
A10: POS | B10: PILOTO | C10: Nº | D10: partic. | E10: record | F10: classif. | G10: Prova | H10: partic. | I10: record | J10: classif. | K10: Prova | L10: partic. | M10: record | N10: classif. | O10: Prova | P10: partic. | Q10: record | R10: classif. | S10: Prova | T10: partic. | U10: record | V10: classif. | W10: Prova | X10: partic. | Y10: record | Z10: classif. | AA10: Prova | AB10: TOTAL
A11: 1º | B11: GINESIO CASSOL | C11: 286 | D11: X | F11: 55 | G11: 100 | H11: 0 | J11: 0 | L11: X | N11: 80 | O11: 100 | P11: X | R11: 80 | S11: 20 | X11: 40 | Z11: 160 | AA11: 120 | AB11: =SUM(D11:AA11) -> 755
A12: 2º | B12: ROGERIO BERNARDI | C12: 1322 | D12: X | F12: 40 | G12: 0 | H12: X | I12: 20 | J12: 75 | L12: X | N12: 30 | O12: 40 | P12: X | R12: 75 | S12: 100 | X12: 50 | Z12: 140 | AA12: 160 | AB12: 730
A13: 3º | B13: FABIANO SERRO | C13: 336 | D13: X | F13: 75 | G13: 20 | H13: 0 | J13: 0 | L13: X | N13: 65 | O13: 60 | P13: X | R13: 60 | S13: 80 | X13: 40 | Z13: 150 | AA13: 80 | AB13: 630
A14: 4º | B14: FABIANO BORTONCELLO | C14: 168 | D14: X | F14: 50 | G14: 60 | H14: 0 | J14: 0 | L14: X | N14: 60 | O14: 40 | P14: X | R14: 70 | S14: 40 | X14: 40 | Z14: 80 | AA14: 0 | AB14: 440
A15: 5º | B15: MICHEL GOLIN | C15: 288 | D15: 0 | F15: 0 | G15: 0 | H15: 0 | J15: 0 | L15: X | N15: 70 | O15: 20 | P15: X | R15: 15 | S15: 20 | X15: 25 | Z15: 100 | AA15: 120 | AB15: 370
A16: 6º | B16: ALEXANDRE BRITO | C16: 86 | D16: 0 | F16: 0 | G16: 0 | H16: X | J16: 80 | L16: X | N16: 75 | O16: 80 | P16: 15 | R16: 65 | S16: 40 | X16: 0 | Z16: 0 | AA16: 0 | AB16: 355
A17: 7º | B17: ROMULO BRAGA | C17: 45 | D17: 0 | F17: 0 | G17: 0 | H17: 0 | J17: 0 | L17: 0 | N17: 0 | O17: 0 | P17: 0 | R17: 0 | S17: 0 | X17: 10 | Z17: 120 | AA17: 200 | AB17: 330
A18: 8º | B18: UBIRAJARA INACIO | C18: 16 | D18: 0 | F18: 0 | G18: 0 | H18: 0 | J18: 0 | L18: X | N18: 35 | O18: 0 | P18: X | R18: 55 | S18: 20 | X18: 25 | Z18: 110 | AA18: 80 | AB18: 325
A19: 9º | B19: THIAGO LUNA | C19: 8 | D19: 0 | F19: 0 | G19: 0 | H19: 0 | J19: 0 | L19: X | N19: 25 | O19: 0 | P19: X | R19: 45 | S19: 20 | X19: 25 | Z19: 90 | AA19: 80 | AB19: 285
A20: 10º | B20: DIAN ALONSO | C20: 611 | D20: 0 | F20: 0 | G20: 0 | H20: 0 | J20: 0 | L20: X | N20: 55 | O20: 20 | P20: X | R20: 50 | S20: 40 | X20: 25 | Z20: 50 | AA20: 40 | AB20: 280
A21: 11º | B21: WESLEY BRITO | C21: 777 | D21: 0 | F21: 0 | G21: 0 | H21: 0 | J21: 0 | L21: 0 | N21: 0 | O21: 0 | P21: 0 | R21: 0 | S21: 0 | X21: 10 | Z21: 130 | AA21: 80 | AB21: 220
A22: 12º | B22: BRUNO TOZETTTI | C22: 47 | D22: X | F22: 60 | G22: 40 | H22: 0 | J22: 0 | L22: 10 | N22: 45 | O22: 40 | P22: 0 | R22: 0 | S22: 0 | X22: 0 | Z22: 0 | AA22: 0 | AB22: 195
A23: 13º | B23: IVAN COSTA SILVA | C23: 450 | D23: 5 | E23: 20 | F23: 80 | G23: 40 | H23: 0 | J23: 0 | L23: 0 | N23: 0 | O23: 0 | P23: 0 | R23: 0 | S23: 0 | X23: 0 | Z23: 0 | AA23: 0 | AB23: 145
A24: 14º | B24: RENAN ROANI | C24: 30 | D24: 0 | F24: 0 | G24: 0 | H24: 0 | J24: 0 | L24: 0 | N24: 0 | O24: 0 | P24: X | R24: 30 | S24: 0 | X24: 15 | Z24: 60 | AA24: 40 | AB24: 145
A25: 15º | B25: ANGELO A. GOBBO | C25: 157 | D25: X | F25: 20 | G25: 20 | H25: X | J25: 45 | L25: 15 | N25: 40 | O25: 0 | P25: 0 | R25: 0 | S25: 0 | X25: 0 | Z25: 0 | AA25: 0 | AB25: 140
A26: 16º | B26: GIULIANO SIQUEIRA | C26: 878 | D26: X | F26: 45 | G26: 20 | H26: 10 | J26: 55 | L26: 0 | N26: 0 | O26: 0 | P26: 0 | R26: 0 | S26: 0 | X26: 0 | Z26: 0 | AA26: 0 | AB26: 130
A27: 17º | B27: RODRIGO MAZUCO | C27: 511 | D27: 0 | F27: 0 | G27: 0 | H27: 0 | J27: 0 | L27: 0 | N27: 0 | O27: 0 | P27: 0 | R27: 0 | S27: 0 | X27: 10 | Z27: 70 | AA27: 40 | AB27: 120
A28: 18º | B28: LUIZ F. CEMINSKI | C28: 287 | D28: 5 | F28: 70 | G28: 40 | H28: 0 | J28: 0 | L28: 0 | N28: 0 | O28: 0 | P28: 0 | R28: 0 | S28: 0 | X28: 0 | Z28: 0 | AA28: 0 | AB28: 115
A29: 19º | B29: NELSON MARTELLI | C29: 455 | D29: 5 | F29: 65 | G29: 40 | H29: 0 | J29: 0 | L29: 0 | N29: 0 | O29: 0 | P29: 0 | R29: 0 | S29: 0 | X29: 0 | Z29: 0 | AA29: 0 | AB29: 110
A30: 20º | B30: WILLIAM PINHEIRO | C30: 808 | D30: X | F30: 35 | G30: 20 | H30: 10 | J30: 45 | L30: 0 | N30: 0 | O30: 0 | P30: 0 | R30: 0 | S30: 0 | X30: 0 | Z30: 0 | AA30: 0 | AB30: 110
A31: 21º | B31: CELSO CASTRO | C31: 293 | D31: 0 | F31: 0 | G31: 0 | H31: 0 | J31: 0 | L31: 0 | N31: 0 | O31: 0 | P31: X | R31: 20 | S31: 20 | X31: 15 | Z31: 50 | AA31: 0 | AB31: 105
A32: 22º | B32: FRANCISCO SANSHES | C32: 95 | D32: X | F32: 15 | G32: 20 | H32: 0 | J32: 0 | L32: 0 | N32: 0 | O32: 0 | P32: 10 | R32: 40 | S32: 20 | X32: 0 | Z32: 0 | AA32: 0 | AB32: 105
A33: 23º | B33: DIORGE RECKZIEGEL | C33: 801 | D33: 0 | F33: 0 | G33: 0 | H33: 0 | J33: 0 | L33: X | N33: 30 | O33: 0 | P33: 10 | R33: 35 | S33: 20 | X33: 0 | Z33: 0 | AA33: 0 | AB33: 95
A34: 24º | B34: NOEMAR ZATTI | C34: 55 | D34: 0 | F34: 0 | G34: 0 | H34: 0 | J34: 0 | L34: 0 | N34: 0 | O34: 0 | P34: 0 | R34: 0 | S34: 0 | X34: 10 | Z34: 40 | AA34: 40 | AB34: 90
A35: 25º | B35: CESAR SABO | C35: 136 | D35: 0 | F35: 0 | G35: 0 | H35: 0 | J35: 0 | L35: 0 | N35: 0 | O35: 0 | P35: 0 | R35: 0 | S35: 0 | X35: 10 | Z35: 70 | AA35: 0 | AB35: 80
A36: 26º | B36: CARLOS AUGUSTO | C36: 365 | D36: 0 | F36: 0 | G36: 0 | H36: 5 | J36: 70 | L36: 0 | N36: 0 | O36: 0 | P36: 0 | R36: 0 | S36: 0 | X36: 0 | Z36: 0 | AA36: 0 | AB36: 75
A37: 27º | B37: DALMO ABREU | C37: 1113 | D37: 0 | F37: 0 | G37: 0 | H37: 5 | J37: 65 | L37: 0 | N37: 0 | O37: 0 | P37: 0 | R37: 0 | S37: 0 | X37: 0 | Z37: 0 | AA37: 0 | AB37: 70
A38: 28º | B38: RAFAEL MANASSES | C38: 367 | D38: 0 | F38: 0 | G38: 0 | H38: 5 | J38: 60 | L38: 0 | N38: 0 | O38: 0 | P38: 0 | R38: 0 | S38: 0 | X38: 0 | Z38: 0 | AA38: 0 | AB38: 65
A39: 29º | B39: WILLIAM KRAUSS | C39: 167 | D39: 0 | F39: 0 | G39: 0 | H39: 0 | J39: 0 | L39: 5 | N39: 15 | O39: 40 | P39: 0 | R39: 0 | S39: 0 | X39: 0 | Z39: 0 | AA39: 0 | AB39: 60
A40: 30º | B40: ALFREDO O. NETO | C40: 172 | D40: 0 | F40: 0 | G40: 0 | H40: 5 | J40: 50 | L40: 0 | N40: 0 | O40: 0 | P40: 0 | R40: 0 | S40: 0 | X40: 0 | Z40: 0 | AA40: 0 | AB40: 55
A41: 31º | B41: RAFAEL W. SESTREN | C41: 90 | D41: 5 | F41: 30 | G41: 20 | H41: 0 | J41: 0 | L41: 0 | N41: 0 | O41: 0 | P41: 0 | R41: 0 | S41: 0 | X41: 0 | Z41: 0 | AA41: 0 | AB41: 55
A42: 32º | B42: ADALBERTO JAHN | C42: 51 | D42: 0 | F42: 0 | G42: 0 | H42: 0 | J42: 0 | L42: 5 | N42: 5 | O42: 40 | P42: 0 | R42: 0 | S42: 0 | X42: 0 | Z42: 0 | AA42: 0 | AB42: 50
A43: 33º | B43: THIAGO BARNABÉ | C43: 4140 | D43: 0 | F43: 0 | G43: 0 | H43: 0 | J43: 0 | L43: 5 | N43: 25 | O43: 20 | P43: 0 | R43: 0 | S43: 0 | X43: 0 | Z43: 0 | AA43: 0 | AB43: =SUM(D43:AA43) -> 50
A44: 34º | B44: PATRICK PAULUK | C44: 85 | D44: 0 | F44: 0 | G44: 0 | H44: 5 | J44: 40 | L44: 0 | N44: 0 | O44: 0 | P44: 0 | R44: 0 | S44: 0 | X44: 0 | Z44: 0 | AA44: 0 | AB44: 45
A45: 35º | B45: CLEBERSON MENDES | C45: 2 | D45: 0 | F45: 0 | G45: 0 | H45: 5 | J45: 35 | L45: 0 | N45: 0 | O45: 0 | P45: 0 | R45: 0 | S45: 0 | X45: 0 | Z45: 0 | AA45: 0 | AB45: 40
A46: 36º | B46: LEANDRO SILVEIRA | C46: 444 | D46: 0 | F46: 0 | G46: 0 | H46: 5 | J46: 30 | L46: 0 | N46: 0 | O46: 0 | P46: 0 | R46: 0 | S46: 0 | X46: 0 | Z46: 0 | AA46: 0 | AB46: 35
A47: 37º | B47: ALEXANDRE SCORÇATO | C47: 20 | D47: 5 | F47: 25 | G47: 0 | H47: 0 | J47: 0 | L47: 0 | N47: 0 | O47: 0 | P47: 0 | R47: 0 | S47: 0 | X47: 0 | Z47: 0 | AA47: 0 | AB47: 30
A48: 38º | B48: ANTONIO MACEDO NETO | C48: 185 | D48: 0 | F48: 0 | G48: 0 | H48: 5 | J48: 25 | L48: 0 | N48: 0 | O48: 0 | P48: 0 | R48: 0 | S48: 0 | X48: 0 | Z48: 0 | AA48: 0 | AB48: 30
A49: 39º | B49: MARCIO CORTES | C49: 859 | D49: 0 | F49: 0 | G49: 0 | H49: 0 | J49: 0 | L49: 0 | N49: 0 | O49: 0 | P49: 5 | R49: 25 | S49: 0 | X49: 0 | Z49: 0 | AA49: 0 | AB49: 30
A50: 40º | B50: CLAUDIO PROGETTI | C50: 100 | D50: 0 | F50: 0 | G50: 0 | H50: 0 | J50: 0 | L50: 5 | N50: 20 | O50: 0 | P50: 0 | R50: 0 | S50: 0 | X50: 0 | Z50: 0 | AA50: 0 | AB50: 25
A51: 41º | AB51: 0
A52: 42º | AB52: 0
A53: 43º | AB53: 0
A54: 44º | AB54: 0
A55: 45º | AB55: 0
A56: 46º | AB56: 0
A57: 47º | AB57: 0
A58: 48º | AB58: 0
A59: 49º | AB59: 0
A60: 50º | AB60: 0
A61: 51º | AB61: 0
A62: 52º | AB62: 0
A63: 53º | AB63: 0
A64: 54º | AB64: 0
A65: 55º | AB65: 0
A66: 56º | AB66: 0
A67: 57º | AB67: 0
A68: 58º | AB68: 0
A69: 59º | AB69: 0
A70: 60º | AB70: 0
A71: 61º | AB71: 0
A72: 62º | AB72: 0
A73: 63º | AB73: 0
A74: 64º | AB74: 0
A75: 65º | AB75: =SUM(D75:AA75) -> 0
A76: 66º | AB76: 0
A77: 67º | AB77: 0
A78: 68º | AB78: 0
A79: 69º | AB79: 0
A80: 70º | AB80: 0
A81: 71º | AB81: 0
A82: 72º | AB82: 0
A83: 73º | AB83: 0
A84: 74º | AB84: 0
A85: 75º | AB85: 0
A86: 76º | AB86: 0
A87: 77º | AB87: 0
A88: 78º | AB88: 0
A89: 79º | AB89: 0
A90: 80º | AB90: 0
A91: 81º | AB91: 0
A92: 82º | AB92: 0
A93: 83º | AB93: 0
A94: 84º | AB94: 0
A95: 85º | AB95: 0
A96: 86º | AB96: 0
A97: 87º | AB97: 0
A98: 88º | AB98: 0
A99: 89º | AB99: 0
A100: 90º | AB100: 0
B102: LEGENDA
B103: BONIFICAÇÃO POR ETAPA PARTICIPADA
B104: PARTICIPOU DE 1 ETAPA= | D104: 5
B105: PARTICIPOU DE 2 ETAPAS= | D105: 1X+10
B106: PARTICIPOU DE 3 ETAPAS= | D106: 2X+15
B107: PARTICIPOU DE 4 ETAPAS= | D107: 3X+25
B108: PARTICIPOU DE 5 ETAPAS | D108: 4X+40
B109: PARTICIPOU DE 6 ETAPAS= | D109: 5X+50
B110: BONUS RECORD | D110: 20
B111: PROVA EM BRANCO | D111: NÃO TEVE ELIMINATORIAS

Sheet DTB
C2: CLASSIFICAÇÃO OFICIAL DO CAMPEONATO BRASILEIRO 2013 DE ARRANCADA 402 M.
C5: Evento | D5: 1º | H5: 2º | L5: 3º | P5: 4º | T5: 5º | X5: 6º
C6: Local | D6: VELOPARK | H6: Curitiba | L6: VELOPARK | P6: VELOPARK | X6: VELOPARK
C7: Data | D7: 15 a17/03 | H7: 03 a 05/05/2013 | L7: 16 a 18/08/2013 | P7: 27 a 29/09/2013 | X7: 17/11
A9: DIANTEIRA TURBO B DTB | D9: bonus | E9: bonus | F9: bonus | H9: bonus | I9: bonus | J9: bonus | L9: bonus | M9: bonus | N9: bonus | P9: bonus | Q9: bonus | R9: bonus | T9: bonus | U9: bonus | V9: bonus | X9: bonus | Y9: bonus | Z9: bonus
A10: POS | B10: PILOTO | C10: Nº | D10: partic. | E10: record | F10: classif. | G10: Prova | H10: partic. | I10: record | J10: classif. | K10: Prova | L10: partic. | M10: record | N10: classif. | O10: Prova | P10: partic. | Q10: record | R10: classif. | S10: Prova | T10: partic. | U10: record | V10: classif. | W10: Prova | X10: partic. | Y10: record | Z10: classif. | AA10: Prova | AB10: TOTAL
A11: 1º | B11: VILSON FERREIRA | C11: 231 | D11: X | F11: 80 | G11: 100 | H11: X | I11: 20 | J11: 50 | L11: X | N11: 75 | O11: 60 | P11: X | R11: 75 | S11: 20 | X11: 50 | Z11: 120 | AA11: 160 | AB11: =SUM(D11:AA11) -> 810
A12: 2º | B12: THIAGO VASCONCELOS | C12: 712 | D12: X | E12: 20 | F12: 75 | G12: 60 | H12: X | J12: 45 | L12: X | N12: 50 | O12: 40 | P12: X | R12: 70 | S12: 80 | X12: 50 | Z12: 80 | AA12: 80 | AB12: 650
A13: 3º | B13: WLADMIR CARRANZA | C13: 284 | D13: X | F13: 55 | G13: 80 | H13: X | J13: 60 | L13: X | N13: 80 | O13: 40 | P13: X | R13: 25 | S13: 0 | X13: 50 | Z13: 130 | AA13: 40 | AB13: 560
A14: 4º | B14: CHARLES USCOCOVICH | C14: 34 | D14: X | F14: 60 | G14: 60 | H14: X | J14: 35 | L14: 0 | N14: 0 | O14: 0 | P14: X | R14: 80 | S14: 60 | X14: 40 | Z14: 40 | AA14: 80 | AB14: 455
A15: 5º | B15: JOACIR CORDOVA | C15: 2009 | D15: 0 | F15: 0 | G15: 0 | H15: 0 | J15: 0 | L15: X | N15: 0 | O15: 0 | P15: X | R15: 60 | S15: 20 | X15: 25 | Z15: 140 | AA15: 200 | AB15: 445
A16: 6º | B16: ALEXANDRE H SILVA | C16: 901 | D16: 0 | F16: 0 | G16: 0 | H16: 0 | J16: 0 | L16: 0 | N16: 0 | O16: 0 | P16: X | R16: 50 | S16: 60 | X16: 15 | Z16: 160 | AA16: 120 | AB16: 405
A17: 7º | B17: LEANDRO BETINI | C17: 333 | D17: X | F17: 0 | G17: 0 | H17: 0 | J17: 0 | L17: X | N17: 0 | O17: 0 | P17: 0 | R17: 0 | S17: 0 | X17: 25 | Z17: 150 | AA17: 120 | AB17: 295
A18: 8º | B18: EVANDRO REIS OLIVEIRA | C18: 272 | D18: x | F18: 65 | G18: 40 | H18: 0 | J18: 0 | L18: 10 | N18: 70 | O18: 100 | P18: 0 | R18: 0 | S18: 0 | X18: 0 | Z18: 0 | AA18: 0 | AB18: 285
A19: 9º | B19: ALEXANDRE C. VASCONCELOS | C19: 258 | D19: X | F19: 70 | G19: 40 | H19: X | J19: 0 | L19: 0 | N19: 0 | O19: 0 | P19: 0 | R19: 0 | S19: 0 | X19: 25 | Z19: 90 | AA19: 40 | AB19: 265
A20: 10º | B20: CARLOS NASCIMENTO | C20: 229 | D20: 0 | F20: 0 | G20: 0 | H20: 0 | J20: 0 | L20: X | N20: 0 | O20: 0 | P20: X | R20: 20 | S20: 20 | X20: 25 | Z20: 110 | AA20: 80 | AB20: 255
A21: 11º | B21: MARCOS PAQUALINI | C21: 28 | D21: 0 | F21: 0 | G21: 0 | H21: 0 | J21: 0 | L21: X | N21: 30 | O21: 40 | P21: X | R21: 45 | S21: 20 | X21: 25 | Z21: 50 | AA21: 40 | AB21: 250
A22: 12º | B22: THIAGO DA FONTE | C22: 998 | D22: 0 | F22: 0 | G22: 0 | H22: 0 | J22: 0 | L22: X | N22: 20 | O22: 20 | P22: 10 | R22: 65 | S22: 100 | X22: 0 | Z22: 0 | AA22: 0 | AB22: 215
A23: 13º | B23: FERNANDO SEVEGNANI | C23: 901 | D23: X | F23: 0 | G23: 0 | H23: 0 | J23: 0 | L23: X | N23: 0 | O23: 0 | P23: 0 | R23: 0 | S23: 0 | X23: 25 | Z23: 100 | AA23: 80 | AB23: 205
A24: 14º | B24: RAFAEL FITIPALDI | C24: 1 | D24: X | F24: 0 | G24: 0 | H24: X | J24: 0 | L24: 0 | N24: 0 | O24: 0 | P24: X | R24: 35 | S24: 20 | X24: 40 | Z24: 70 | AA24: 40 | AB24: 205
A25: 15º | B25: IBERE SILVEIRA | C25: 473 | D25: X | F25: 45 | G25: 40 | H25: 0 | J25: 0 | L25: 10 | N25: 60 | O25: 40 | P25: 0 | R25: 0 | S25: 0 | X25: 0 | Z25: 0 | AA25: 0 | AB25: 195
A26: 16º | B26: JOSE ZARBIELLI | C26: 66 | D26: X | F26: 0 | G26: 0 | H26: X | J26: 65 | L26: X | N26: 0 | O26: 0 | P26: X | R26: 0 | S26: 0 | X26: 50 | Z26: 30 | AA26: 40 | AB26: 185
A27: 17º | B27: KLEBER SILVA | C27: 431 | D27: X | F27: 10 | G27: 0 | H27: 0 | J27: 0 | L27: X | N27: 65 | O27: 40 | P27: X | R27: 5 | S27: 20 | X27: 40 | Z27: 0 | AA27: 0 | AB27: 180
A28: 18º | B28: FABIO COSTA | C28: 51 | D28: X | F28: 40 | G28: 0 | H28: X | J28: 80 | L28: X | N28: 0 | O28: 0 | P28: 25 | R28: 0 | S28: 0 | X28: 0 | Z28: 0 | AA28: 0 | AB28: 145
A29: 19º | B29: JAVIER MENDOZA | C29: 286 | D29: X | F29: 15 | G29: 20 | H29: X | J29: 25 | L29: 0 | N29: 0 | O29: 0 | P29: X | R29: 15 | S29: 20 | X29: 40 | Z29: 0 | AA29: 0 | AB29: 135
A30: 20º | B30: FABIO FROZA | C30: 88 | D30: 0 | F30: 0 | G30: 0 | H30: 0 | J30: 0 | L30: 0 | N30: 0 | O30: 0 | P30: 0 | R30: 0 | S30: 0 | X30: 5 | Z30: 60 | AA30: 40 | AB30: 105
A31: 21º | B31: ANDRÉ M AGUIAR | C31: 185 | D31: 0 | F31: 0 | G31: 0 | H31: 0 | J31: 0 | L31: X | N31: 5 | O31: 20 | P31: X | R31: 30 | S31: 20 | X31: 25 | Z31: 0 | AA31: 0 | AB31: 100
A32: 22º | B32: ADALBERTO JAHN | C32: 27 | D32: 0 | F32: 0 | G32: 0 | H32: X | J32: 75 | L32: 0 | N32: 0 | O32: 0 | P32: 0 | R32: 0 | S32: 0 | X32: 15 | Z32: 0 | AA32: 0 | AB32: 90
A33: 23º | B33: ADRIANO PRADO | C33: 3 | D33: 0 | F33: 0 | G33: 0 | H33: 0 | J33: 0 | L33: 0 | N33: 0 | O33: 0 | P33: X | R33: 55 | S33: 20 | X33: 15 | Z33: 0 | AA33: 0 | AB33: 90
A34: 24º | B34: RICARDO TOTTI | C34: 5 | D34: X | F34: 0 | G34: 0 | H34: 0 | J34: 0 | L34: X | N34: 0 | O34: 0 | P34: X | R34: 0 | S34: 0 | X34: 40 | Z34: 50 | AA34: 0 | AB34: 90
A35: 25º | B35: CAMILA BRANDÃO | C35: 29 | D35: X | F35: 0 | G35: 0 | H35: 0 | J35: 0 | L35: 10 | N35: 55 | O35: 20 | P35: 0 | R35: 0 | S35: 0 | X35: 0 | Z35: 0 | AA35: 0 | AB35: 85
A36: 26º | B36: CRISTIAN GIRARDELLO | C36: 413 | D36: X | F36: 0 | G36: 0 | H36: 0 | J36: 0 | L36: X | N36: 35 | O36: 20 | P36: 0 | R36: 0 | S36: 0 | X36: 25 | Z36: 0 | AA36: 0 | AB36: 80
A37: 27º | B37: LUCIANO AGOTTANI | C37: 32 | D37: 0 | F37: 0 | G37: 0 | H37: 0 | J37: 0 | L37: X | N37: 45 | O37: 20 | P37: 10 | R37: 0 | S37: 0 | X37: 0 | Z37: 0 | AA37: 0 | AB37: 75
A38: 28º | B38: RONI MENDOÇA | C38: 285 | D38: 0 | F38: 0 | G38: 0 | H38: 5 | J38: 70 | L38: 0 | N38: 0 | O38: 0 | P38: 0 | R38: 0 | S38: 0 | X38: 0 | Z38: 0 | AA38: 0 | AB38: 75
A39: 29º | B39: MATHEUS TOMBESI | C39: 21 | D39: 0 | F39: 0 | G39: 0 | H39: 0 | J39: 0 | L39: X | N39: 0 | O39: 0 | P39: 10 | R39: 40 | S39: 20 | X39: 0 | Z39: 0 | AA39: 0 | AB39: 70
A40: 30º | B40: ALVARO LUIS CASTRO | C40: 46 | D40: X | F40: 35 | G40: 20 | H40: 10 | J40: 0 | L40: 0 | N40: 0 | O40: 0 | P40: 0 | R40: 0 | S40: 0 | X40: 0 | Z40: 0 | AA40: 0 | AB40: 65
A41: 31º | B41: EVERSON BIASIO | C41: 732 | D41: X | F41: 5 | G41: 20 | H41: 0 | J41: 0 | L41: X | N41: 0 | O41: 0 | P41: X | R41: 0 | S41: 0 | X41: 40 | Z41: 0 | AA41: 0 | AB41: 65
A42: 32º | B42: FABIANO POLLIS | C42: 5 | D42: 0 | F42: 0 | G42: 0 | H42: 0 | J42: 0 | L42: 0 | N42: 0 | O42: 0 | P42: 0 | R42: 0 | S42: 0 | X42: 5 | Z42: 60 | AA42: 0 | AB42: 65
A43: 33º | B43: ADRIANO CORDEIRO | C43: 18 | D43: 0 | F43: 0 | G43: 0 | H43: 5 | J43: 55 | L43: 0 | N43: 0 | O43: 0 | P43: 0 | R43: 0 | S43: 0 | X43: 0 | Z43: 0 | AA43: 0 | AB43: =SUM(D43:AA43) -> 60
A44: 34º | B44: GUSTAVO LUNA SANTOS | C44: 277 | D44: X | F44: 25 | G44: 20 | H44: 0 | J44: 0 | L44: X | N44: 0 | O44: 0 | P44: 15 | R44: 0 | S44: 0 | X44: 0 | Z44: 0 | AA44: 0 | AB44: 60
A45: 35º | B45: CAIO TAVARES | C45: 1431 | D45: 5 | F45: 50 | G45: 0 | H45: 0 | J45: 0 | L45: 0 | N45: 0 | O45: 0 | P45: 0 | R45: 0 | S45: 0 | X45: 0 | Z45: 0 | AA45: 0 | AB45: 55
A46: 36º | B46: DIEGO TRINTINAGLIA | C46: 6800 | D46: 0 | F46: 0 | G46: 0 | H46: 0 | J46: 0 | L46: X | N46: 0 | O46: 0 | P46: X | R46: 10 | S46: 20 | X46: 25 | Z46: 0 | AA46: 0 | AB46: 55
A47: 37º | B47: EDSON O. MACHADO | C47: 33 | D47: X | F47: 0 | G47: 0 | H47: 10 | J47: 40 | L47: 0 | N47: 0 | O47: 0 | P47: 0 | R47: 0 | S47: 0 | X47: 0 | Z47: 0 | AA47: 0 | AB47: 50
A48: 38º | B48: GUSTAVO BORK | C48: 299 | D48: 0 | F48: 0 | G48: 0 | H48: 0 | J48: 0 | L48: 5 | N48: 25 | O48: 20 | P48: 0 | R48: 0 | S48: 0 | X48: 0 | Z48: 0 | AA48: 0 | AB48: 50
A49: 39º | B49: MARCEL FALATO | C49: 4 | D49: 0 | F49: 0 | G49: 0 | H49: 0 | J49: 0 | L49: 5 | N49: 40 | O49: 0 | P49: 0 | R49: 0 | S49: 0 | X49: 0 | Z49: 0 | AA49: 0 | AB49: 45
A50: 40º | B50: RICARDO ARGENTA | C50: 222 | D50: 5 | F50: 20 | G50: 20 | H50: 0 | J50: 0 | L50: 0 | N50: 0 | O50: 0 | P50: 0 | R50: 0 | S50: 0 | X50: 0 | Z50: 0 | AA50: 0 | AB50: 45
A51: 41º | B51: CELSO BUNILHA | C51: 582 | D51: X | F51: 0 | G51: 0 | H51: 10 | J51: 30 | L51: 0 | N51: 0 | O51: 0 | P51: 0 | R51: 0 | S51: 0 | X51: 0 | Z51: 0 | AA51: 0 | AB51: 40
A52: 42º | B52: ULISSES SOARES | C52: 1304 | D52: 0 | F52: 0 | G52: 0 | H52: 0 | J52: 0 | L52: 5 | N52: 10 | O52: 20 | P52: 0 | R52: 0 | S52: 0 | X52: 0 | Z52: 0 | AA52: 0 | AB52: 35
A53: 43º | B53: WILLIAM TARABAIN | C53: 200 | D53: 5 | F53: 30 | G53: 0 | H53: 0 | J53: 0 | L53: 0 | N53: 0 | O53: 0 | P53: 0 | R53: 0 | S53: 0 | X53: 0 | Z53: 0 | AA53: 0 | AB53: 35
A54: 44º | B54: CARLOS MARCOLAN | C54: 470 | D54: 0 | F54: 0 | G54: 0 | H54: 0 | J54: 0 | L54: X | N54: 0 | O54: 0 | P54: X | R54: 0 | S54: 0 | X54: 25 | Z54: 0 | AA54: 0 | AB54: 25
A55: 45º | B55: CARLOS MOREIRA | C55: 26 | D55: 0 | F55: 0 | G55: 0 | H55: 5 | J55: 20 | L55: 0 | N55: 0 | O55: 0 | P55: 0 | R55: 0 | S55: 0 | X55: 0 | Z55: 0 | AA55: 0 | AB55: 25
A56: 46º | B56: FERNANDO SEMENIUK | C56: 12 | D56: 0 | F56: 0 | G56: 0 | H56: 0 | J56: 0 | L56: X | N56: 0 | O56: 0 | P56: X | R56: 0 | S56: 0 | X56: 25 | Z56: 0 | AA56: 0 | AB56: 25
A57: 47º | B57: FERNANDO YAMANAKA | C57: 961 | D57: X | F57: 0 | G57: 0 | H57: 0 | J57: 0 | L57: X | N57: 0 | O57: 0 | P57: 0 | R57: 0 | S57: 0 | X57: 25 | Z57: 0 | AA57: 0 | AB57: 25
A58: 48º | B58: JOSÉ BARCELOS NETO | C58: 3331 | D58: X | F58: 0 | G58: 0 | H58: 0 | J58: 0 | L58: X | N58: 0 | O58: 0 | P58: 0 | R58: 0 | S58: 0 | X58: 25 | Z58: 0 | AA58: 0 | AB58: 25
A59: 49º | B59: RANIER SESTREN | C59: 81 | D59: X | F59: 0 | G59: 0 | H59: 10 | J59: 15 | L59: 0 | N59: 0 | O59: 0 | P59: 0 | R59: 0 | S59: 0 | X59: 0 | Z59: 0 | AA59: 0 | AB59: 25
A60: 50º | B60: CARLOS RODRIGUES | C60: 26 | D60: 0 | F60: 0 | G60: 0 | H60: 0 | J60: 0 | L60: 5 | N60: 15 | O60: 0 | P60: 0 | R60: 0 | S60: 0 | X60: 0 | Z60: 0 | AA60: 0 | AB60: 20
A61: 51º | B61: ALCENIR FERNANDES | C61: 446 | D61: X | F61: 0 | G61: 0 | H61: X | J61: 0 | L61: 15 | N61: 0 | O61: 0 | P61: 0 | R61: 0 | S61: 0 | X61: 0 | Z61: 0 | AA61: 0 | AB61: 15
A62: 52º | B62: DIOGO STOLTZ | C62: 915 | D62: 0 | F62: 0 | G62: 0 | H62: 5 | J62: 10 | L62: 0 | N62: 0 | O62: 0 | P62: 0 | R62: 0 | S62: 0 | X62: 0 | Z62: 0 | AA62: 0 | AB62: 15
A63: 53º | B63: JOÃO CHUDZY | C63: 312 | D63: X | F63: 0 | G63: 0 | H63: 0 | J63: 0 | L63: 0 | N63: 0 | O63: 0 | P63: 0 | R63: 0 | S63: 0 | X63: 15 | Z63: 0 | AA63: 0 | AB63: 15
A64: 54º | B64: LEANDRO CARDOSO | C64: 99 | D64: 0 | F64: 0 | G64: 0 | H64: 0 | J64: 0 | L64: X | N64: 0 | O64: 0 | P64: 0 | R64: 0 | S64: 0 | X64: 15 | Z64: 0 | AA64: 0 | AB64: 15
A65: 55º | B65: ALESSANDRO WEISS | C65: 334 | D65: X | F65: 0 | G65: 0 | H65: 10 | J65: 0 | L65: 0 | N65: 0 | O65: 0 | P65: 0 | R65: 0 | S65: 0 | X65: 0 | Z65: 0 | AA65: 0 | AB65: 10
A66: 56º | B66: CARLOS CORREA SILVA | C66: 237 | D66: X | F66: 0 | G66: 0 | H66: 0 | J66: 0 | L66: 10 | N66: 0 | O66: 0 | P66: 0 | R66: 0 | S66: 0 | X66: 0 | Z66: 0 | AA66: 0 | AB66: 10
A67: 57º | B67: CLEBER CEMIN | C67: 30 | D67: X | F67: 0 | G67: 0 | H67: 0 | J67: 0 | L67: 10 | N67: 0 | O67: 0 | P67: 0 | R67: 0 | S67: 0 | X67: 0 | Z67: 0 | AA67: 0 | AB67: 10
A68: 58º | B68: GABRIEL PEREIRA | C68: 192 | D68: 0 | F68: 0 | G68: 0 | H68: 0 | J68: 0 | L68: X | N68: 0 | O68: 0 | P68: 10 | R68: 0 | S68: 0 | X68: 0 | Z68: 0 | AA68: 0 | AB68: 10
A69: 59º | B69: KAYO FERNANDES | C69: 99 | D69: 0 | F69: 0 | G69: 0 | H69: X | J69: 0 | L69: 10 | N69: 0 | O69: 0 | P69: 0 | R69: 0 | S69: 0 | X69: 0 | Z69: 0 | AA69: 0 | AB69: 10
A70: 60º | B70: LUIZ SOUZA | C70: 472 | D70: 0 | F70: 0 | G70: 0 | H70: X | J70: 0 | L70: 10 | N70: 0 | O70: 0 | P70: 0 | R70: 0 | S70: 0 | X70: 0 | Z70: 0 | AA70: 0 | AB70: 10
A71: 61º | B71: MARIO MARTINO | C71: 321 | D71: 0 | F71: 0 | G71: 0 | H71: 5 | J71: 5 | L71: 0 | N71: 0 | O71: 0 | P71: 0 | R71: 0 | S71: 0 | X71: 0 | Z71: 0 | AA71: 0 | AB71: 10
A72: 62º | B72: PAULO SERGIO SOUZA | C72: 1975 | D72: X | F72: 0 | G72: 0 | H72: 10 | J72: 0 | L72: 0 | N72: 0 | O72: 0 | P72: 0 | R72: 0 | S72: 0 | X72: 0 | Z72: 0 | AA72: 0 | AB72: 10
A73: 63º | B73: VANIEL MARIN | C73: 282 | D73: 0 | F73: 0 | G73: 0 | H73: 0 | J73: 0 | L73: X | N73: 0 | O73: 0 | P73: 10 | R73: 0 | S73: 0 | X73: 0 | Z73: 0 | AA73: 0 | AB73: 10
A74: 64º | B74: VINICIOS PARTEKA | C74: 1402 | D74: X | F74: 0 | G74: 0 | H74: 10 | J74: 0 | L74: 0 | N74: 0 | O74: 0 | P74: 0 | R74: 0 | S74: 0 | X74: 0 | Z74: 0 | AA74: 0 | AB74: 10
A75: 65º | B75: ABES ELIAS | C75: 1983 | D75: 0 | F75: 0 | G75: 0 | H75: 0 | J75: 0 | L75: 5 | N75: 0 | O75: 0 | P75: 0 | R75: 0 | S75: 0 | X75: 0 | Z75: 0 | AA75: 0 | AB75: =SUM(D75:AA75) -> 5
A76: 66º | B76: ALISSON SILVA | C76: 102 | D76: 0 | F76: 0 | G76: 0 | H76: 0 | J76: 0 | L76: 5 | N76: 0 | O76: 0 | P76: 0 | R76: 0 | S76: 0 | X76: 0 | Z76: 0 | AA76: 0 | AB76: 5
A77: 67º | B77: ANDRÉ GUEIROS | C77: 36 | D77: 0 | F77: 0 | G77: 0 | H77: 0 | J77: 0 | L77: 5 | N77: 0 | O77: 0 | P77: 0 | R77: 0 | S77: 0 | X77: 0 | Z77: 0 | AA77: 0 | AB77: 5
A78: 68º | B78: ANGELO GOBBO | C78: 459 | D78: 0 | F78: 0 | G78: 0 | H78: 0 | J78: 0 | L78: 5 | N78: 0 | O78: 0 | P78: 0 | R78: 0 | S78: 0 | X78: 0 | Z78: 0 | AA78: 0 | AB78: 5
A79: 69º | B79: CARLOS BRANCO SILVA | C79: 10 | D79: 0 | F79: 0 | G79: 0 | H79: 5 | J79: 0 | L79: 0 | N79: 0 | O79: 0 | P79: 0 | R79: 0 | S79: 0 | X79: 0 | Z79: 0 | AA79: 0 | AB79: 5
A80: 70º | B80: CLAUDIONEI OLIVEIRA | C80: 306 | D80: 5 | F80: 0 | G80: 0 | H80: 0 | J80: 0 | L80: 0 | N80: 0 | O80: 0 | P80: 0 | R80: 0 | S80: 0 | X80: 0 | Z80: 0 | AA80: 0 | AB80: 5
A81: 71º | B81: DANIEL SUSEJ | C81: 3003 | D81: 5 | F81: 0 | G81: 0 | H81: 0 | J81: 0 | L81: 0 | N81: 0 | O81: 0 | P81: 0 | R81: 0 | S81: 0 | X81: 0 | Z81: 0 | AA81: 0 | AB81: 5
A82: 72º | B82: DANILO RODRIGUES | C82: 420 | D82: 0 | F82: 0 | G82: 0 | H82: 0 | J82: 0 | L82: 5 | N82: 0 | O82: 0 | P82: 0 | R82: 0 | S82: 0 | X82: 0 | Z82: 0 | AA82: 0 | AB82: 5
A83: 73º | B83: DIEGO GARCIA | C83: 1005 | D83: 5 | F83: 0 | G83: 0 | H83: 0 | J83: 0 | L83: 0 | N83: 0 | O83: 0 | P83: 0 | R83: 0 | S83: 0 | X83: 0 | Z83: 0 | AA83: 0 | AB83: 5
A84: 74º | B84: ELSIO RODRIGUES | C84: 75 | D84: 0 | F84: 0 | G84: 0 | H84: 5 | J84: 0 | L84: 0 | N84: 0 | O84: 0 | P84: 0 | R84: 0 | S84: 0 | X84: 0 | Z84: 0 | AA84: 0 | AB84: 5
A85: 75º | B85: EVERSON MEZZADRI | C85: 809 | D85: 0 | F85: 0 | G85: 0 | H85: 5 | J85: 0 | L85: 0 | N85: 0 | O85: 0 | P85: 0 | R85: 0 | S85: 0 | X85: 0 | Z85: 0 | AA85: 0 | AB85: 5
A86: 76º | B86: FLAVIO ZABINI | C86: 85 | D86: 0 | F86: 0 | G86: 0 | H86: 5 | J86: 0 | L86: 0 | N86: 0 | O86: 0 | P86: 0 | R86: 0 | S86: 0 | X86: 0 | Z86: 0 | AA86: 0 | AB86: 5
A87: 77º | B87: FRANCISCO SANCHES | C87: 95 | D87: 0 | F87: 0 | G87: 0 | H87: 0 | J87: 0 | L87: 5 | N87: 0 | O87: 0 | P87: 0 | R87: 0 | S87: 0 | X87: 0 | Z87: 0 | AA87: 0 | AB87: 5
A88: 78º | B88: JAIRO BORGES | C88: 805 | D88: 0 | F88: 0 | G88: 0 | H88: 5 | J88: 0 | L88: 0 | N88: 0 | O88: 0 | P88: 0 | R88: 0 | S88: 0 | X88: 0 | Z88: 0 | AA88: 0 | AB88: 5
A89: 79º | B89: JOSE DOLATTO | C89: 337 | D89: 5 | F89: 0 | G89: 0 | H89: 0 | J89: 0 | L89: 0 | N89: 0 | O89: 0 | P89: 0 | R89: 0 | S89: 0 | X89: 0 | Z89: 0 | AA89: 0 | AB89: 5
A90: 80º | B90: LEONARDO SCOLIN | C90: 158 | D90: 0 | F90: 0 | G90: 0 | H90: 5 | J90: 0 | L90: 0 | N90: 0 | O90: 0 | P90: 0 | R90: 0 | S90: 0 | X90: 0 | Z90: 0 | AA90: 0 | AB90: 5
A91: 81º | B91: MAICON CANESIN S. | C91: 285 | D91: 5 | F91: 0 | G91: 0 | H91: 0 | J91: 0 | L91: 0 | N91: 0 | O91: 0 | P91: 0 | R91: 0 | S91: 0 | X91: 0 | Z91: 0 | AA91: 0 | AB91: 5
A92: 82º | B92: MARCEL FERREIRA | C92: 708 | D92: 0 | F92: 0 | G92: 0 | H92: 0 | J92: 0 | L92: 5 | N92: 0 | O92: 0 | P92: 0 | R92: 0 | S92: 0 | X92: 0 | Z92: 0 | AA92: 0 | AB92: 5
A93: 83º | B93: MARCELO BERNARDES | C93: 376 | D93: 5 | F93: 0 | G93: 0 | H93: 0 | J93: 0 | L93: 0 | N93: 0 | O93: 0 | P93: 0 | R93: 0 | S93: 0 | X93: 0 | Z93: 0 | AA93: 0 | AB93: 5
A94: 84º | B94: PAULO PETROV | C94: 1 | D94: 0 | F94: 0 | G94: 0 | H94: 0 | J94: 0 | L94: 5 | N94: 0 | O94: 0 | P94: 0 | R94: 0 | S94: 0 | X94: 0 | Z94: 0 | AA94: 0 | AB94: 5
A95: 85º | B95: RENAN HIRT | C95: 157 | D95: 0 | F95: 0 | G95: 0 | H95: 5 | J95: 0 | L95: 0 | N95: 0 | O95: 0 | P95: 0 | R95: 0 | S95: 0 | X95: 0 | Z95: 0 | AA95: 0 | AB95: 5
A96: 86º | B96: RICARDO BAPTISTA | C96: 40 | D96: 0 | F96: 0 | G96: 0 | H96: 5 | J96: 0 | L96: 0 | N96: 0 | O96: 0 | P96: 0 | R96: 0 | S96: 0 | X96: 0 | Z96: 0 | AA96: 0 | AB96: 5
A97: 87º | B97: RODRIGO MAZUCO | C97: 511 | D97: 0 | F97: 0 | G97: 0 | H97: 0 | J97: 0 | L97: 5 | N97: 0 | O97: 0 | P97: 0 | R97: 0 | S97: 0 | X97: 0 | Z97: 0 | AA97: 0 | AB97: 5
A98: 88º | B98: ROMULO O. BRAGA | C98: 45 | D98: 5 | F98: 0 | G98: 0 | H98: 0 | J98: 0 | L98: 0 | N98: 0 | O98: 0 | P98: 0 | R98: 0 | S98: 0 | X98: 0 | Z98: 0 | AA98: 0 | AB98: 5
A99: 89º | B99: SALOMAO BITENCOURT | C99: 35 | D99: 0 | F99: 0 | G99: 0 | H99: 0 | J99: 0 | L99: 5 | N99: 0 | O99: 0 | P99: 0 | R99: 0 | S99: 0 | X99: 0 | Z99: 0 | AA99: 0 | AB99: 5
A100: 90º | B100: SERGIO ZIMMER | C100: 35 | D100: 0 | F100: 0 | G100: 0 | H100: 5 | J100: 0 | L100: 0 | N100: 0 | O100: 0 | P100: 0 | R100: 0 | S100: 0 | X100: 0 | Z100: 0 | AA100: 0 | AB100: 5
B103: LEGENDA
B104: BONIFICAÇÃO POR ETAPA PARTICIPADA
B105: PARTICIPOU DE 1 ETAPA= | D105: 5
B106: PARTICIPOU DE 2 ETAPAS= | D106: 1X+10
B107: PARTICIPOU DE 3 ETAPAS= | D107: 2X+15
B108: PARTICIPOU DE 4 ETAPAS= | D108: 3X+25
B109: PARTICIPOU DE 5 ETAPAS | D109: 4X+40
B110: PARTICIPOU DE 6 ETAPAS= | D110: 5X+50
B111: BONUS RECORD | D111: 20
B112: PROVA EM BRANCO | D112: NÃO TEVE ELIMINATORIAS

Sheet DTA
C2: CLASSIFICAÇÃO OFICIAL DO CAMPEONATO BRASILEIRO 2013 DE ARRANCADA 402 M.
C5: Evento | D5: 1º | H5: 2º | L5: 3º | P5: 4º | T5: 5º | X5: 6º
C6: Local | D6: VELOPARK | H6: Curitiba | L6: VELOPARK | P6: VELOPARK | X6: VELOPARK
C7: Data | D7: 15 a 17/03 | H7: 03 a 05/05/2013 | L7: 16 a 18/08/2013 | P7: 27 a 29/09/2013 | X7: 17/11
A9: DIANTEIRA TURBO A DTA | D9: bonus | E9: bonus | F9: bonus | H9: bonus | I9: bonus | J9: bonus | L9: bonus | M9: bonus | N9: bonus | P9: bonus | Q9: bonus | R9: bonus | T9: bonus | U9: bonus | V9: bonus | X9: bonus | Y9: bonus | Z9: bonus
A10: POS | B10: PILOTO | C10: Nº | D10: partic. | E10: record | F10: classif. | G10: Prova | H10: partic. | I10: record | J10: classif. | K10: Prova | L10: partic. | M10: record | N10: classif. | O10: Prova | P10: partic. | Q10: record | R10: classif. | S10: Prova | T10: partic. | U10: record | V10: classif. | W10: Prova | X10: partic. | Y10: record | Z10: classif. | AA10: Prova | AB10: TOTAL
A11: 1º | B11: VALMOR MENEGATTI | C11: 5 | D11: X | F11: 5 | G11: 20 | H11: X | J11: 80 | L11: X | N11: 65 | O11: 100 | P11: X | R11: 60 | S11: 40 | X11: 50 | Z11: 160 | AA11: 160 | AB11: =SUM(D11:AA11) -> 740
A12: 2º | B12: RENATO BRIZOLARI | C12: 330 | D12: X | F12: 25 | G12: 0 | H12: 0 | J12: 0 | L12: X | N12: 35 | O12: 40 | P12: X | R12: 75 | S12: 60 | X12: 40 | Z12: 150 | AA12: 200 | AB12: 625
A13: 3º | B13: LEANDRO CASTILHOS | C13: 778 | D13: X | F13: 30 | G13: 40 | H13: 0 | J13: 0 | L13: X | N13: 80 | O13: 0 | P13: X | R13: 70 | S13: 100 | X13: 40 | Z13: 140 | AA13: 80 | AB13: 580
A14: 4º | B14: PAULO E. S. RAMOS | C14: 222 | D14: X | F14: 75 | G14: 20 | H14: 0 | J14: 0 | L14: X | N14: 70 | O14: 40 | P14: X | R14: 40 | S14: 60 | X14: 40 | Z14: 110 | AA14: 120 | AB14: 575
A15: 5º | B15: ADRIANO SALTON | C15: 31 | D15: X | E15: 20 | F15: 80 | G15: 40 | H15: 0 | J15: 0 | L15: X | N15: 55 | O15: 20 | P15: X | R15: 20 | S15: 80 | X15: 40 | Z15: 120 | AA15: 80 | AB15: 555
A16: 6º | B16: ALEX MORETON | C16: 229 | D16: X | F16: 65 | G16: 60 | H16: 0 | J16: 0 | L16: X | N16: 60 | O16: 40 | P16: X | R16: 65 | S16: 0 | X16: 40 | Z16: 130 | AA16: 0 | AB16: 460
A17: 7º | B17: MARCELO PREZOTO | C17: 316 | D17: X | F17: 60 | G17: 40 | H17: X | J17: 75 | L17: X | N17: 75 | O17: 40 | P17: X | R17: 15 | S17: 0 | X17: 50 | Z17: 30 | AA17: 40 | AB17: 425
A18: 8º | B18: CARLOS L. CASTILHOS | C18: 7878 | D18: X | F18: 70 | G18: 60 | H18: 0 | J18: 0 | L18: X | M18: 20 | N18: 30 | O18: 60 | P18: X | R18: 80 | S18: 40 | X18: 40 | Z18: 20 | AA18: 0 | AB18: 420
A19: 9º | B19: ALEXANDRE MIZUKAMI | C19: 2266 | D19: X | F19: 35 | G19: 100 | H19: 0 | J19: 0 | L19: X | N19: 25 | O19: 0 | P19: X | R19: 50 | S19: 20 | X19: 40 | Z19: 100 | AA19: 0 | AB19: 370
A20: 10º | B20: JONATAS TRESSINO | C20: 333 | D20: X | F20: 40 | G20: 80 | H20: 0 | J20: 0 | L20: X | N20: 50 | O20: 20 | P20: 0 | R20: 0 | S20: 0 | X20: 25 | Z20: 60 | AA20: 40 | AB20: 315
A21: 11º | B21: EVERTON CARVALHO | C21: 171 | D21: X | F21: 20 | G21: 20 | H21: 0 | J21: 0 | L21: 0 | N21: 0 | O21: 0 | P21: X | R21: 45 | S21: 20 | X21: 25 | Z21: 90 | AA21: 80 | AB21: 300
A22: 12º | B22: FELIPE ZARANZA | C22: 50 | D22: X | F22: 55 | G22: 20 | H22: 0 | J22: 0 | L22: 0 | N22: 0 | O22: 0 | P22: X | R22: 25 | S22: 0 | X22: 25 | Z22: 40 | AA22: 80 | AB22: 245
A23: 13º | B23: ANDRÉ SCHIAVON | C23: 5 | D23: 0 | F23: 0 | G23: 0 | H23: 0 | J23: 0 | L23: X | N23: 45 | O23: 20 | P23: X | R23: 55 | S23: 20 | X23: 25 | Z23: 70 | AA23: 0 | AB23: 235
A24: 14º | B24: JULIO MENDES | C24: 22 | D24: 0 | F24: 0 | G24: 0 | H24: 0 | J24: 0 | L24: 0 | N24: 0 | O24: 0 | P24: X | R24: 30 | S24: 20 | X24: 15 | Z24: 80 | AA24: 80 | AB24: 225
A25: 15º | B25: MARCELO MATUKIWA | C25: 44 | D25: X | F25: 50 | G25: 0 | H25: 0 | J25: 0 | L25: X | N25: 15 | O25: 0 | P25: 0 | R25: 0 | S25: 0 | X25: 25 | Z25: 50 | AA25: 0 | AB25: 140
A26: 16º | B26: ADEMAR DAGOSTINI | C26: 38 | D26: 0 | F26: 0 | G26: 0 | H26: 0 | J26: 0 | L26: 5 | N26: 40 | O26: 60 | P26: 0 | R26: 0 | S26: 0 | X26: 0 | Z26: 0 | AA26: 0 | AB26: 105
A27: 17º | B27: ROGERIO BERTELLI | C27: 2232 | D27: 0 | F27: 0 | G27: 0 | H27: 0 | J27: 0 | L27: 0 | N27: 0 | O27: 0 | P27: 5 | R27: 35 | S27: 40 | X27: 0 | Z27: 0 | AA27: 0 | AB27: 80
A28: 18º | B28: ANDERSON RAMOS | C28: 15 | D28: 0 | F28: 0 | G28: 0 | H28: 5 | J28: 70 | L28: 0 | N28: 0 | O28: 0 | P28: 0 | R28: 0 | S28: 0 | X28: 0 | Z28: 0 | AA28: 0 | AB28: 75
A29: 19º | B29: GUSTAVO GUIMARAES | C29: 285 | D29: 0 | F29: 0 | G29: 0 | H29: 5 | J29: 65 | L29: 0 | N29: 0 | O29: 0 | P29: 0 | R29: 0 | S29: 0 | X29: 0 | Z29: 0 | AA29: 0 | AB29: 70
A30: 20º | B30: VILSON FERREIRA | C30: 51 | D30: 0 | F30: 0 | G30: 0 | H30: 5 | J30: 60 | L30: 0 | N30: 0 | O30: 0 | P30: 0 | R30: 0 | S30: 0 | X30: 0 | Z30: 0 | AA30: 0 | AB30: 65
A31: 21º | B31: WILLIAM PINHEIRO | C31: 818 | D31: 5 | F31: 0 | G31: 0 | H31: 5 | J31: 55 | L31: 0 | N31: 0 | O31: 0 | P31: 0 | R31: 0 | S31: 0 | X31: 0 | Z31: 0 | AA31: 0 | AB31: 65
A32: 22º | B32: ANDERSON BORRE | C32: 88 | D32: X | F32: 0 | G32: 0 | H32: 10 | J32: 50 | L32: 0 | N32: 0 | O32: 0 | P32: 0 | R32: 0 | S32: 0 | X32: 0 | Z32: 0 | AA32: 0 | AB32: 60
A33: 23º | B33: WILBER VALENTE | C33: 288 | D33: 5 | F33: 10 | G33: 40 | H33: 0 | J33: 0 | L33: 0 | N33: 0 | O33: 0 | P33: 0 | R33: 0 | S33: 0 | X33: 0 | Z33: 0 | AA33: 0 | AB33: 55
A34: 24º | B34: RODRIGO S DO VALE | C34: 500 | D34: 5 | F34: 45 | G34: 0 | H34: 0 | J34: 0 | L34: 0 | N34: 0 | O34: 0 | P34: 0 | R34: 0 | S34: 0 | X34: 0 | Z34: 0 | AA34: 0 | AB34: 50
A35: 25º | B35: ALESSANDRO BARRANCO | C35: 26 | D35: 0 | F35: 0 | G35: 0 | H35: 0 | J35: 0 | L35: 5 | N35: 20 | O35: 0 | P35: 0 | R35: 0 | S35: 0 | X35: 0 | Z35: 0 | AA35: 0 | AB35: 25
A36: 26º | B36: RICARDO BORBA | C36: 115 | D36: X | F36: 0 | G36: 0 | H36: 0 | J36: 0 | L36: 0 | N36: 0 | O36: 0 | P36: 0 | R36: 0 | S36: 0 | X36: 15 | Z36: 10 | AA36: 0 | AB36: 25
A37: 27º | B37: RODRIGO SEBBEN | C37: 237 | D37: 5 | F37: 15 | G37: 0 | H37: 0 | J37: 0 | L37: 0 | N37: 0 | O37: 0 | P37: 0 | R37: 0 | S37: 0 | X37: 0 | Z37: 0 | AA37: 0 | AB37: 20
A38: 28º | B38: ELEMER NAGI | C38: 1012 | D38: 0 | F38: 0 | G38: 0 | H38: 0 | J38: 0 | L38: 5 | N38: 10 | O38: 0 | P38: 0 | R38: 0 | S38: 0 | X38: 0 | Z38: 0 | AA38: 0 | AB38: 15
A39: 29º | B39: LUCIANO NICHETTI | C39: 711 | D39: 0 | F39: 0 | G39: 0 | H39: 0 | J39: 0 | L39: 5 | N39: 5 | O39: 0 | P39: 0 | R39: 0 | S39: 0 | X39: 0 | Z39: 0 | AA39: 0 | AB39: 10
A40: 30º | B40: DENNIS F. GODOI | C40: 471 | D40: 5 | F40: 0 | G40: 0 | H40: 0 | J40: 0 | L40: 0 | N40: 0 | O40: 0 | P40: 0 | R40: 0 | S40: 0 | X40: 0 | Z40: 0 | AA40: 0 | AB40: 5
A41: 31º | B41: EDERSON SCHIMIDT | C41: 16 | D41: 5 | F41: 0 | G41: 0 | H41: 0 | J41: 0 | L41: 0 | N41: 0 | O41: 0 | P41: 0 | R41: 0 | S41: 0 | X41: 0 | Z41: 0 | AA41: 0 | AB41: 5
A42: 32º | B42: LEONARDO GARCIA | C42: 998 | D42: 5 | F42: 0 | G42: 0 | H42: 0 | J42: 0 | L42: 0 | N42: 0 | O42: 0 | P42: 0 | R42: 0 | S42: 0 | X42: 0 | Z42: 0 | AA42: 0 | AB42: 5
A43: 33º | B43: SANDRO SOUZA | C43: 251 | D43: 5 | F43: 0 | G43: 0 | H43: 0 | J43: 0 | L43: 0 | N43: 0 | O43: 0 | P43: 0 | R43: 0 | S43: 0 | X43: 0 | Z43: 0 | AA43: 0 | AB43: =SUM(D43:AA43) -> 5
A44: 34º | AB44: 0
A45: 35º | AB45: 0
A46: 36º | AB46: 0
A47: 37º | AB47: 0
A48: 38º | AB48: 0
A49: 39º | AB49: 0
A50: 40º | AB50: 0
A51: 41º | AB51: 0
A52: 42º | AB52: 0
A53: 43º | AB53: 0
A54: 44º | AB54: 0
A55: 45º | AB55: 0
A56: 46º | AB56: 0
A57: 47º | AB57: 0
A58: 48º | AB58: 0
A59: 49º | AB59: 0
A60: 50º | AB60: 0
A61: 51º | AB61: 0
A62: 52º | AB62: 0
A63: 53º | AB63: 0
A64: 54º | AB64: 0
A65: 55º | AB65: 0
A66: 56º | AB66: 0
A67: 57º | AB67: 0
A68: 58º | AB68: 0
A69: 59º | AB69: 0
A70: 60º | AB70: 0
A71: 61º | AB71: 0
A72: 62º | AB72: 0
A73: 63º | AB73: 0
A74: 64º | AB74: 0
A75: 65º | AB75: =SUM(D75:AA75) -> 0
A76: 66º | AB76: 0
A77: 67º | AB77: 0
A78: 68º | AB78: 0
A79: 69º | AB79: 0
A80: 70º | AB80: 0
A81: 71º | AB81: 0
A82: 72º | AB82: 0
A83: 73º | AB83: 0
A84: 74º | AB84: 0
A85: 75º | AB85: 0
A86: 76º | AB86: 0
A87: 77º | AB87: 0
A88: 78º | AB88: 0
A89: 79º | AB89: 0
A90: 80º | AB90: 0
A91: 81º | AB91: 0
A92: 82º | AB92: 0
A93: 83º | AB93: 0
A94: 84º | AB94: 0
A95: 85º | AB95: 0
A96: 86º | AB96: 0
A97: 87º | AB97: 0
A98: 88º | AB98: 0
A99: 89º | AB99: 0
A100: 90º | AB100: 0
B102: LEGENDA
B103: BONIFICAÇÃO POR ETAPA PARTICIPADA
B104: PARTICIPOU DE 1 ETAPA= | D104: 5
B105: PARTICIPOU DE 2 ETAPAS= | D105: 1X+10
B106: PARTICIPOU DE 3 ETAPAS= | D106: 2X+15
B107: PARTICIPOU DE 4 ETAPAS= | D107: 3X+25
B108: PARTICIPOU DE 5 ETAPAS | D108: 4X+40
B109: PARTICIPOU DE 6 ETAPAS= | D109: 5X+50
B110: BONUS RECORD | D110: 20
B111: PROVA EM BRANCO | D111: NÃO TEVE ELIMINATORIAS

Sheet DJ
C2: CLASSIFICAÇÃO OFICIAL DO CAMPEONATO BRASILEIRO 2013 DE ARRANCADA 402 M.
C5: Evento | D5: 1º | H5: 2º | L5: 3º | P5: 4º | T5: 5º | X5: 6º
C6: Local | L6: VELOPARK | P6: VELOPARK | X6: VP
C7: Data | L7: 16 a 18/08/2013 | P7: 27 a 29/09/2013 | X7: 17/11
A9: DRAG JUNIOR | D9: bonus | E9: bonus | F9: bonus | H9: bonus | I9: bonus | J9: bonus | L9: bonus | M9: bonus | N9: bonus | P9: bonus | Q9: bonus | R9: bonus | T9: bonus | U9: bonus | V9: bonus | X9: bonus | Y9: bonus | Z9: bonus
A10: POS | B10: PILOTO | C10: Nº | D10: partic. | E10: record | F10: classif. | G10: Prova | H10: partic. | I10: record | J10: classif. | K10: Prova | L10: partic. | M10: record | N10: classif. | O10: Prova | P10: partic. | Q10: record | R10: classif. | S10: Prova | T10: partic. | U10: record | V10: classif. | W10: Prova | X10: partic. | Y10: record | Z10: classif. | AA10: Prova | AB10: TOTAL
A11: 1º | B11: FELIPE LUNA | D11: 0 | F11: 0 | G11: 0 | H11: 0 | J11: 0 | K11: 0 | L11: 5 | M11: 20 | N11: 80 | O11: 0 | P11: 0 | R11: 0 | S11: 0 | X11: 0 | Z11: 0 | AA11: 0 | AB11: =SUM(D11:AA11) -> 105
A12: 2º | B12: THOMAS SILVA | C12: 121 | D12: 0 | F12: 0 | G12: 0 | H12: 0 | J12: 0 | K12: 0 | L12: 0 | N12: 0 | O12: 0 | P12: 5 | R12: 80 | S12: 0 | X12: 0 | Z12: 0 | AA12: 0 | AB12: 85
A13: 3º | AB13: 0
A14: 4º | AB14: 0
A15: 5º | AB15: 0
A16: 6º | AB16: 0
A17: 7º | AB17: 0
A18: 8º | AB18: 0
A19: 9º | AB19: 0
A20: 10º | AB20: 0
A21: 11º | AB21: 0
A22: 12º | AB22: 0
A23: 13º | AB23: 0
A24: 14º | AB24: 0
A25: 15º | AB25: 0
A26: 16º | AB26: 0
A27: 17º | AB27: 0
A28: 18º | AB28: 0
A29: 19º | AB29: 0
A30: 20º | AB30: 0
A31: 21º | AB31: 0
A32: 22º | AB32: 0
A33: 23º | AB33: 0
A34: 24º | AB34: 0
A35: 25º | AB35: 0
A36: 26º | AB36: 0
A37: 27º | AB37: 0
A38: 28º | AB38: 0
A39: 29º | AB39: 0
A40: 30º | AB40: 0
A41: 31º | AB41: 0
A42: 32º | AB42: 0
A43: 33º | AB43: =SUM(D43:AA43) -> 0
A44: 34º | AB44: 0
A45: 35º | AB45: 0
A46: 36º | AB46: 0
A47: 37º | AB47: 0
A48: 38º | AB48: 0
A49: 39º | AB49: 0
A50: 40º | AB50: 0
A51: 41º | AB51: 0
A52: 42º | AB52: 0
A53: 43º | AB53: 0
A54: 44º | AB54: 0
A55: 45º | AB55: 0
A56: 46º | AB56: 0
A57: 47º | AB57: 0
A58: 48º | AB58: 0
A59: 49º | AB59: 0
A60: 50º | AB60: 0
A61: 51º | AB61: 0
A62: 52º | AB62: 0
A63: 53º | AB63: 0
A64: 54º | AB64: 0
A65: 55º | AB65: 0
A66: 56º | AB66: 0
A67: 57º | AB67: 0
A68: 58º | AB68: 0
A69: 59º | AB69: 0
A70: 60º | AB70: 0
A71: 61º | AB71: 0
A72: 62º | AB72: 0
A73: 63º | AB73: 0
A74: 64º | AB74: 0
A75: 65º | AB75: =SUM(D75:AA75) -> 0
A76: 66º | AB76: 0
A77: 67º | AB77: 0
A78: 68º | AB78: 0
A79: 69º | AB79: 0
A80: 70º | AB80: 0
A81: 71º | AB81: 0
A82: 72º | AB82: 0
A83: 73º | AB83: 0
A84: 74º | AB84: 0
A85: 75º | AB85: 0
A86: 76º | AB86: 0
A87: 77º | AB87: 0
A88: 78º | AB88: 0
A89: 79º | AB89: 0
A90: 80º | AB90: 0
A91: 81º | AB91: 0
A92: 82º | AB92: 0
A93: 83º | AB93: 0
A94: 84º | AB94: 0
A95: 85º | AB95: 0
A96: 86º | AB96: 0
A97: 87º | AB97: 0
A98: 88º | AB98: 0
A99: 89º | AB99: 0
A100: 90º | AB100: 0
B102: LEGENDA
B103: BONIFICAÇÃO POR ETAPA PARTICIPADA
B104: PARTICIPOU DE 1 ETAPA= | D104: 5
B105: PARTICIPOU DE 2 ETAPAS= | D105: 1X+10
B106: PARTICIPOU DE 3 ETAPAS= | D106: 2X+15
B107: PARTICIPOU DE 4 ETAPAS= | D107: 3X+25
B108: PARTICIPOU DE 5 ETAPAS | D108: 4X+40
B109: PARTICIPOU DE 6 ETAPAS= | D109: 5X+50
B110: BONUS RECORD | D110: 20
B111: PROVA EM BRANCO | D111: NÃO TEVE ELIMINATORIAS

Sheet TT
C2: CLASSIFICAÇÃO OFICIAL DO CAMPEONATO BRASILEIRO 2013 DE ARRANCADA 402 M.
C5: Evento | D5: 1º | H5: 2º | L5: 3º | P5: 4º | T5: 5º | X5: 6º
C6: Local | D6: VELOPARK | H6: Curitiba | L6: VELOPARK | P6: VELOPARK | X6: VELOPARK
C7: Data | D7: 15 a 17/03 | H7: 03 a 05/05/2013 | L7: 16 a 18/08/2013 | P7: 27 a 29/09/2013 | X7: 17/11
A9: CATEGORIA TT | D9: bonus | E9: bonus | F9: bonus | H9: bonus | I9: bonus | J9: bonus | L9: bonus | M9: bonus | N9: bonus | P9: bonus | Q9: bonus | R9: bonus | T9: bonus | U9: bonus | V9: bonus | X9: bonus | Y9: bonus | Z9: bonus
A10: POS | B10: PILOTO | C10: Nº | D10: partic. | E10: record | F10: classif. | G10: Prova | H10: partic. | I10: record | J10: classif. | K10: Prova | L10: partic. | M10: record | N10: classif. | O10: Prova | P10: partic. | Q10: record | R10: classif. | S10: Prova | T10: partic. | U10: record | V10: classif. | W10: Prova | X10: partic. | Y10: record | Z10: classif. | AA10: Prova | AB10: TOTAL
A11: 1º | B11: CLEVERSON BERTOLIM | C11: 875 | D11: X | E11: 20 | F11: 80 | G11: 100 | H11: X | J11: 70 | L11: X | M11: 20 | N11: 80 | O11: 100 | P11: X | Q11: 20 | R11: 75 | S11: 0 | X11: 50 | Z11: 160 | AA11: 0 | AB11: =SUM(D11:AA11) -> 775
A12: 2º | B12: FABRICIO CHICON | C12: 62 | D12: X | F12: 60 | G12: 40 | H12: 0 | J12: 0 | L12: X | N12: 55 | O12: 20 | P12: X | R12: 80 | S12: 0 | X12: 40 | Z12: 130 | AA12: 80 | AB12: 505
A13: 3º | B13: ANSELMO SEPP | C13: 1972 | D13: 0 | F13: 0 | G13: 0 | H13: 0 | J13: 0 | L13: X | N13: 70 | O13: 40 | P13: X | R13: 50 | S13: 0 | X13: 25 | Z13: 150 | AA13: 160 | AB13: 495
A14: 4º | B14: CELSO CAMARGO | C14: 101 | D14: 0 | F14: 0 | G14: 0 | H14: X | I14: 20 | J14: 80 | L14: X | N14: 75 | O14: 0 | P14: X | R14: 70 | S14: 0 | X14: 40 | Z14: 120 | AA14: 80 | AB14: 485
A15: 5º | B15: CRISTIAN CORDEIRO | C15: 333 | D15: 0 | F15: 0 | G15: 0 | H15: 0 | J15: 0 | L15: 0 | N15: 0 | O15: 0 | P15: 0 | R15: 0 | S15: 0 | X15: 5 | Z15: 140 | AA15: 200 | AB15: 345
A16: 6º | B16: FABIANO PINTO | C16: 977 | D16: 0 | F16: 0 | G16: 0 | H16: X | J16: 55 | L16: X | N16: 40 | O16: 60 | P16: 15 | R16: 55 | S16: 80 | X16: 0 | Z16: 0 | AA16: 0 | AB16: 305
A17: 7º | B17: CRISTIANO JULIO | C17: 333 | D17: X | F17: 70 | G17: 40 | H17: X | J17: 75 | L17: 0 | N17: 0 | O17: 0 | P17: 15 | R17: 60 | S17: 40 | X17: 0 | Z17: 0 | AA17: 0 | AB17: 300
A18: 8º | B18: JEAN DALLA VALE | C18: 86 | D18: X | F18: 65 | G18: 0 | H18: X | J18: 65 | L18: 15 | N18: 60 | O18: 40 | P18: 0 | R18: 0 | S18: 0 | X18: 0 | Z18: 0 | AA18: 0 | AB18: 245
A19: 9º | B19: BUBEN STAPENHORST | C19: 77 | D19: 0 | F19: 0 | G19: 0 | H19: 0 | J19: 0 | L19: 0 | N19: 0 | O19: 0 | P19: 5 | R19: 65 | S19: 100 | X19: 0 | Z19: 0 | AA19: 0 | AB19: 170
A20: 10º | B20: THIAGO GASPARI | C20: 74 | D20: X | F20: 75 | G20: 0 | H20: 0 | J20: 0 | L20: 10 | N20: 50 | O20: 0 | P20: 0 | R20: 0 | S20: 0 | X20: 0 | Z20: 0 | AA20: 0 | AB20: 135
A21: 11º | B21: VANDERSON MAGNANTE | C21: 9 | D21: 5 | F21: 55 | G21: 40 | H21: 0 | J21: 0 | L21: 0 | N21: 0 | O21: 0 | P21: 0 | R21: 0 | S21: 0 | X21: 0 | Z21: 0 | AA21: 0 | AB21: 100
A22: 12º | B22: LUIS FIGUEREDO | C22: 9 | D22: 0 | F22: 0 | G22: 0 | H22: 0 | J22: 0 | L22: 5 | N22: 65 | O22: 0 | P22: 0 | R22: 0 | S22: 0 | X22: 0 | Z22: 0 | AA22: 0 | AB22: 70
A23: 13º | B23: ROGERRIO ROSA | C23: 533 | D23: 0 | F23: 0 | G23: 0 | H23: 0 | J23: 0 | L23: 5 | N23: 45 | O23: 20 | P23: 0 | R23: 0 | S23: 0 | X23: 0 | Z23: 0 | AA23: 0 | AB23: 70
A24: 14º | B24: PATRICK SANTOS | C24: 176 | D24: 0 | F24: 0 | G24: 0 | H24: 5 | J24: 60 | L24: 0 | N24: 0 | O24: 0 | P24: 0 | R24: 0 | S24: 0 | X24: 0 | Z24: 0 | AA24: 0 | AB24: 65
A25: 15º | B25: MARCUS DAMO | C25: 1710 | D25: 0 | F25: 0 | G25: 0 | H25: 5 | J25: 50 | L25: 0 | N25: 0 | O25: 0 | P25: 0 | R25: 0 | S25: 0 | X25: 0 | Z25: 0 | AA25: 0 | AB25: 55
A26: 16º | B26: RODRIGO COHEN | C26: 234 | D26: 5 | F26: 50 | G26: 0 | H26: 0 | J26: 0 | L26: 0 | N26: 0 | O26: 0 | P26: 0 | R26: 0 | S26: 0 | X26: 0 | Z26: 0 | AA26: 0 | AB26: 55
A27: 17º | B27: RUI FARIAS | C27: 52 | D27: 0 | F27: 0 | G27: 0 | H27: 5 | J27: 45 | L27: 0 | N27: 0 | O27: 0 | P27: 0 | R27: 0 | S27: 0 | X27: 0 | Z27: 0 | AA27: 0 | AB27: 50
A28: 18º | B28: ANDERSON PARIZE | C28: 775 | D28: 0 | F28: 0 | G28: 0 | H28: 5 | J28: 40 | L28: 0 | N28: 0 | O28: 0 | P28: 0 | R28: 0 | S28: 0 | X28: 0 | Z28: 0 | AA28: 0 | AB28: 45
A29: 19º | B29: PERCIO GONSALVES | C29: 974 | D29: 0 | F29: 0 | G29: 0 | H29: 5 | J29: 35 | L29: 0 | N29: 0 | O29: 0 | P29: 0 | R29: 0 | S29: 0 | X29: 0 | Z29: 0 | AA29: 0 | AB29: 40
A30: 20º | B30: DIRCEU MARTINS | C30: 35 | D30: 0 | F30: 0 | G30: 0 | H30: 5 | J30: 30 | L30: 0 | N30: 0 | O30: 0 | P30: 0 | R30: 0 | S30: 0 | X30: 0 | Z30: 0 | AA30: 0 | AB30: 35
A31: 21º | B31: PEDRO PISKA | C31: 1978 | D31: 0 | F31: 0 | G31: 0 | H31: 5 | J31: 0 | L31: 0 | N31: 0 | O31: 0 | P31: 0 | R31: 0 | S31: 0 | X31: 0 | Z31: 0 | AA31: 0 | AB31: 5
A32: 22º | AB32: 0
A33: 23º | AB33: 0
A34: 24º | AB34: 0
A35: 25º | AB35: 0
A36: 26º | AB36: 0
A37: 27º | AB37: 0
A38: 28º | AB38: 0
A39: 29º | AB39: 0
A40: 30º | AB40: 0
A41: 31º | AB41: 0
A42: 32º | AB42: 0
A43: 33º | AB43: =SUM(D43:AA43) -> 0
A44: 34º | AB44: 0
A45: 35º | AB45: 0
A46: 36º | AB46: 0
A47: 37º | AB47: 0
A48: 38º | AB48: 0
A49: 39º | AB49: 0
A50: 40º | AB50: 0
A51: 41º | AB51: 0
A52: 42º | AB52: 0
A53: 43º | AB53: 0
A54: 44º | AB54: 0
A55: 45º | AB55: 0
A56: 46º | AB56: 0
A57: 47º | AB57: 0
A58: 48º | AB58: 0
A59: 49º | AB59: 0
A60: 50º | AB60: 0
A61: 51º | AB61: 0
A62: 52º | AB62: 0
A63: 53º | AB63: 0
A64: 54º | AB64: 0
A65: 55º | AB65: 0
A66: 56º | AB66: 0
A67: 57º | AB67: 0
A68: 58º | AB68: 0
A69: 59º | AB69: 0
A70: 60º | AB70: 0
A71: 61º | AB71: 0
A72: 62º | AB72: 0
A73: 63º | AB73: 0
A74: 64º | AB74: 0
A75: 65º | AB75: =SUM(D75:AA75) -> 0
A76: 66º | AB76: 0
A77: 67º | AB77: 0
A78: 68º | AB78: 0
A79: 69º | AB79: 0
A80: 70º | AB80: 0
A81: 71º | AB81: 0
A82: 72º | AB82: 0
A83: 73º | AB83: 0
A84: 74º | AB84: 0
A85: 75º | AB85: 0
A86: 76º | AB86: 0
A87: 77º | AB87: 0
A88: 78º | AB88: 0
A89: 79º | AB89: 0
A90: 80º | AB90: 0
A91: 81º | AB91: 0
A92: 82º | AB92: 0
A93: 83º | AB93: 0
A94: 84º | AB94: 0
A95: 85º | AB95: 0
A96: 86º | AB96: 0
A97: 87º | AB97: 0
A98: 88º | AB98: 0
A99: 89º | AB99: 0
A100: 90º | AB100: 0
B102: LEGENDA
B103: BONIFICAÇÃO POR ETAPA PARTICIPADA
B104: PARTICIPOU DE 1 ETAPA= | D104: 5
B105: PARTICIPOU DE 2 ETAPAS= | D105: 1X+10
B106: PARTICIPOU DE 3 ETAPAS= | D106: 2X+15
B107: PARTICIPOU DE 4 ETAPAS= | D107: 3X+25
B108: PARTICIPOU DE 5 ETAPAS | D108: 4X+40
B109: PARTICIPOU DE 6 ETAPAS= | D109: 5X+50
B110: BONUS RECORD | D110: 20
B111: PROVA EM BRANCO | D111: NÃO TEVE ELIMINATORIAS

Sheet DS
C2: CLASSIFICAÇÃO OFICIAL DO CAMPEONATO BRASILEIRO 2013 DE ARRANCADA 402 M.
C5: Evento | D5: 1º | H5: 2º | L5: 3º | P5: 4º | T5: 5º | X5: 6º
C6: Local | D6: VELOPARK 15 A 17/03 | H6: Curitiba | L6: VELOPARK | P6: VELOPARK | X6: VELOPARK
C7: Data | H7: 03 a 05/05/2013 | L7: 16 a 18/08/2013 | P7: 27 a 29/09/2013 | X7: 17/11
A9: DIANTEIRA SUPER - DS | D9: bonus | E9: bonus | F9: bonus | H9: bonus | I9: bonus | J9: bonus | L9: bonus | M9: bonus | N9: bonus | P9: bonus | Q9: bonus | R9: bonus | T9: bonus | U9: bonus | V9: bonus | X9: bonus | Y9: bonus | Z9: bonus
A10: POS | B10: PILOTO | C10: Nº | D10: partic. | E10: record | F10: classif. | G10: Prova | H10: partic. | I10: record | J10: classif. | K10: Prova | L10: partic. | M10: record | N10: classif. | O10: Prova | P10: partic. | Q10: record | R10: classif. | S10: Prova | T10: partic. | U10: record | V10: classif. | W10: Prova | X10: partic. | Y10: record | Z10: classif. | AA10: Prova | AB10: TOTAL
A11: 1º | B11: HARRISSON MARQUES | C11: 222 | D11: 0 | F11: 0 | G11: 0 | H11: X | I11: 20 | J11: 80 | L11: X | M11: 20 | N11: 80 | O11: 100 | P11: 0 | R11: 0 | S11: 0 | X11: 25 | Z11: 160 | AA11: 160 | AB11: =SUM(D11:AA11) -> 645
A12: 2º | B12: RODRIGO BERNIERI | C12: 80 | D12: 0 | F12: 0 | G12: 0 | H12: 0 | J12: 0 | L12: x | N12: 75 | O12: 80 | P12: X | R12: 80 | S12: 100 | X12: 25 | Z12: 140 | AA12: 120 | AB12: 620
A13: 3º | B13: VINICIUS BERTA | C13: 119 | D13: 0 | F13: 0 | G13: 0 | H13: 0 | J13: 0 | L13: x | N13: 65 | O13: 60 | P13: 0 | R13: 0 | S13: 0 | X13: 15 | Z13: 150 | AA13: 200 | AB13: 490
A14: 4º | B14: EVANIR FORTUNATO | C14: 747 | D14: 0 | F14: 0 | G14: 0 | H14: 0 | J14: 0 | L14: 0 | N14: 0 | O14: 0 | P14: X | R14: 70 | S14: 60 | X14: 15 | Z14: 130 | AA14: 80 | AB14: 355
A15: 5º | B15: LUIZ BONACORSO | C15: 2100 | D15: 0 | F15: 0 | G15: 0 | H15: 0 | J15: 0 | L15: X | N15: 70 | O15: 0 | P15: 0 | R15: 0 | S15: 0 | X15: 15 | Z15: 120 | AA15: 80 | AB15: 285
A16: 6º | B16: IGOR ZIMERMANN | C16: 5 | D16: 0 | F16: 0 | G16: 0 | H16: 0 | J16: 0 | L16: 0 | N16: 0 | O16: 0 | P16: 5 | R16: 75 | S16: 80 | X16: 0 | Z16: 0 | AA16: 0 | AB16: 160
A17: 7º | B17: ALBERTO OHPIS | C17: 17 | D17: 0 | F17: 0 | G17: 0 | H17: 5 | J17: 75 | L17: 0 | N17: 0 | O17: 0 | P17: 0 | R17: 0 | S17: 0 | X17: 0 | Z17: 0 | AA17: 0 | AB17: 80
A18: 8º | AB18: 0
A19: 9º | AB19: 0
A20: 10º | AB20: 0
A21: 11º | AB21: 0
A22: 12º | AB22: 0
A23: 13º | AB23: 0
A24: 14º | AB24: 0
A25: 15º | AB25: 0
A26: 16º | AB26: 0
A27: 17º | AB27: 0
A28: 18º | AB28: 0
A29: 19º | AB29: 0
A30: 20º | AB30: 0
A31: 21º | AB31: 0
A32: 22º | AB32: 0
A33: 23º | AB33: 0
A34: 24º | AB34: 0
A35: 25º | AB35: 0
A36: 26º | AB36: 0
A37: 27º | AB37: 0
A38: 28º | AB38: 0
A39: 29º | AB39: 0
A40: 30º | AB40: 0
A41: 31º | AB41: 0
A42: 32º | AB42: 0
A43: 33º | AB43: =SUM(D43:AA43) -> 0
A44: 34º | AB44: 0
A45: 35º | AB45: 0
A46: 36º | AB46: 0
A47: 37º | AB47: 0
A48: 38º | AB48: 0
A49: 39º | AB49: 0
A50: 40º | AB50: 0
A51: 41º | AB51: 0
A52: 42º | AB52: 0
A53: 43º | AB53: 0
A54: 44º | AB54: 0
A55: 45º | AB55: 0
A56: 46º | AB56: 0
A57: 47º | AB57: 0
A58: 48º | AB58: 0
A59: 49º | AB59: 0
A60: 50º | AB60: 0
A61: 51º | AB61: 0
A62: 52º | AB62: 0
A63: 53º | AB63: 0
A64: 54º | AB64: 0
A65: 55º | AB65: 0
A66: 56º | AB66: 0
A67: 57º | AB67: 0
A68: 58º | AB68: 0
A69: 59º | AB69: 0
A70: 60º | AB70: 0
A71: 61º | AB71: 0
A72: 62º | AB72: 0
A73: 63º | AB73: 0
A74: 64º | AB74: 0
A75: 65º | AB75: =SUM(D75:AA75) -> 0
A76: 66º | AB76: 0
A77: 67º | AB77: 0
A78: 68º | AB78: 0
A79: 69º | AB79: 0
A80: 70º | AB80: 0
A81: 71º | AB81: 0
A82: 72º | AB82: 0
A83: 73º | AB83: 0
A84: 74º | AB84: 0
A85: 75º | AB85: 0
A86: 76º | AB86: 0
A87: 77º | AB87: 0
A88: 78º | AB88: 0
A89: 79º | AB89: 0
A90: 80º | AB90: 0
A91: 81º | AB91: 0
A92: 82º | AB92: 0
A93: 83º | AB93: 0
A94: 84º | AB94: 0
A95: 85º | AB95: 0
A96: 86º | AB96: 0
A97: 87º | AB97: 0
A98: 88º | AB98: 0
A99: 89º | AB99: 0
A100: 90º | AB100: 0
B102: LEGENDA
B103: BONIFICAÇÃO POR ETAPA PARTICIPADA
B104: PARTICIPOU DE 1 ETAPA= | D104: 5
B105: PARTICIPOU DE 2 ETAPAS= | D105: 1X+10
B106: PARTICIPOU DE 3 ETAPAS= | D106: 2X+15
B107: PARTICIPOU DE 4 ETAPAS= | D107: 3X+25
B108: PARTICIPOU DE 5 ETAPAS | D108: 4X+40
B109: PARTICIPOU DE 6 ETAPAS= | D109: 5X+50
B110: BONUS RECORD | D110: 20
B111: PROVA EM BRANCO | D111: NÃO TEVE ELIMINATORIAS

Sheet TS
C2: CLASSIFICAÇÃO OFICIAL DO CAMPEONATO BRASILEIRO 2013 DE ARRANCADA 402 M.
C5: Evento | D5: 1º | H5: 2º | L5: 3º | P5: 4º | T5: 5º | X5: 6º
C6: Local | D6: VELOPARK | H6: Curitiba | L6: VELOPARK | P6: VELOPARK | X6: VELOPARK
C7: Data | D7: 15 a 17/03 | H7: 03 a 05/05/2013 | L7: 16 a 18/08/2013 | P7: 27 a 29/09/2013 | X7: 17/11
A9: TRASEIRA SUPER TS | D9: bonus | E9: bonus | F9: bonus | H9: bonus | I9: bonus | J9: bonus | L9: bonus | M9: bonus | N9: bonus | P9: bonus | Q9: bonus | R9: bonus | T9: bonus | U9: bonus | V9: bonus | X9: bonus | Y9: bonus | Z9: bonus
A10: POS | B10: PILOTO | C10: Nº | D10: partic. | E10: record | F10: classif. | G10: Prova | H10: partic. | I10: record | J10: classif. | K10: Prova | L10: partic. | M10: record | N10: classif. | O10: Prova | P10: partic. | Q10: record | R10: classif. | S10: Prova | T10: partic. | U10: record | V10: classif. | W10: Prova | X10: partic. | Y10: record | Z10: classif. | AA10: Prova | AB10: TOTAL
A11: 1º | B11: GUSTAVO CASTANON | C11: 10 | D11: X | E11: 20 | F11: 75 | G11: 100 | H11: 0 | J11: 0 | L11: X | N11: 75 | O11: 80 | P11: X | Q11: 20 | R11: 80 | S11: 100 | X11: 40 | Z11: 160 | AA11: 200 | AB11: =SUM(D11:AA11) -> 950
A12: 2º | B12: MARCIO VALMOR JULIO | C12: 332 | D12: X | F12: 80 | G12: 0 | H12: X | I12: 20 | J12: 80 | L12: X | M12: 20 | N12: 80 | O12: 100 | P12: X | R12: 75 | S12: 80 | X12: 50 | Z12: 140 | AA12: 0 | AB12: 725
A13: 3º | B13: MANOEL CASTANON | C13: 11 | D13: X | F13: 65 | G13: 0 | H13: X | J13: 70 | L13: 0 | N13: 0 | O13: 0 | P13: 15 | R13: 70 | S13: 0 | X13: 0 | Z13: 0 | AA13: 0 | AB13: 220
A14: 4º | B14: RODERJAN | C14: 88 | D14: 0 | F14: 0 | G14: 0 | H14: 0 | J14: 0 | L14: 0 | N14: 0 | O14: 0 | P14: 0 | R14: 0 | S14: 0 | X14: 10 | Z14: 150 | AA14: 0 | AB14: 160
A15: 5º | B15: JAIRO DALLA VALLE | C15: 35 | D15: 5 | F15: 70 | G15: 60 | H15: 0 | J15: 0 | L15: 0 | N15: 0 | O15: 0 | P15: 0 | R15: 0 | S15: 0 | X15: 0 | Z15: 0 | AA15: 0 | AB15: 135
A16: 6º | B16: DIEGO BUZATO | C16: 88 | D16: 0 | F16: 0 | G16: 0 | H16: 5 | J16: 75 | L16: 0 | N16: 0 | O16: 0 | P16: 0 | R16: 0 | S16: 0 | X16: 0 | Z16: 0 | AA16: 0 | AB16: 80
A17: 7º | AB17: 0
A18: 8º | AB18: 0
A19: 9º | AB19: 0
A20: 10º | AB20: 0
A21: 11º | AB21: 0
A22: 12º | AB22: 0
A23: 13º | AB23: 0
A24: 14º | AB24: 0
A25: 15º | AB25: 0
A26: 16º | AB26: 0
A27: 17º | AB27: 0
A28: 18º | AB28: 0
A29: 19º | AB29: 0
A30: 20º | AB30: 0
A31: 21º | AB31: 0
A32: 22º | AB32: 0
A33: 23º | AB33: 0
A34: 24º | AB34: 0
A35: 25º | AB35: 0
A36: 26º | AB36: 0
A37: 27º | AB37: 0
A38: 28º | AB38: 0
A39: 29º | AB39: 0
A40: 30º | AB40: 0
A41: 31º | AB41: 0
A42: 32º | AB42: 0
A43: 33º | AB43: =SUM(D43:AA43) -> 0
A44: 34º | AB44: 0
A45: 35º | AB45: 0
A46: 36º | AB46: 0
A47: 37º | AB47: 0
A48: 38º | AB48: 0
A49: 39º | AB49: 0
A50: 40º | AB50: 0
A51: 41º | AB51: 0
A52: 42º | AB52: 0
A53: 43º | AB53: 0
A54: 44º | AB54: 0
A55: 45º | AB55: 0
A56: 46º | AB56: 0
A57: 47º | AB57: 0
A58: 48º | AB58: 0
A59: 49º | AB59: 0
A60: 50º | AB60: 0
A61: 51º | AB61: 0
A62: 52º | AB62: 0
A63: 53º | AB63: 0
A64: 54º | AB64: 0
A65: 55º | AB65: 0
A66: 56º | AB66: 0
A67: 57º | AB67: 0
A68: 58º | AB68: 0
A69: 59º | AB69: 0
A70: 60º | AB70: 0
A71: 61º | AB71: 0
A72: 62º | AB72: 0
A73: 63º | AB73: 0
A74: 64º | AB74: 0
A75: 65º | AB75: =SUM(D75:AA75) -> 0
A76: 66º | AB76: 0
A77: 67º | AB77: 0
A78: 68º | AB78: 0
A79: 69º | AB79: 0
A80: 70º | AB80: 0
A81: 71º | AB81: 0
A82: 72º | AB82: 0
A83: 73º | AB83: 0
A84: 74º | AB84: 0
A85: 75º | AB85: 0
A86: 76º | AB86: 0
A87: 77º | AB87: 0
A88: 78º | AB88: 0
A89: 79º | AB89: 0
A90: 80º | AB90: 0
A91: 81º | AB91: 0
A92: 82º | AB92: 0
A93: 83º | AB93: 0
A94: 84º | AB94: 0
A95: 85º | AB95: 0
A96: 86º | AB96: 0
A97: 87º | AB97: 0
A98: 88º | AB98: 0
A99: 89º | AB99: 0
A100: 90º | AB100: 0
B102: LEGENDA
B103: BONIFICAÇÃO POR ETAPA PARTICIPADA
B104: PARTICIPOU DE 1 ETAPA= | D104: 5
B105: PARTICIPOU DE 2 ETAPAS= | D105: 1X+10
B106: PARTICIPOU DE 3 ETAPAS= | D106: 2X+15
B107: PARTICIPOU DE 4 ETAPAS= | D107: 3X+25
B108: PARTICIPOU DE 5 ETAPAS | D108: 4X+40
B109: PARTICIPOU DE 6 ETAPAS= | D109: 5X+50
B110: BONUS RECORD | D110: 20
B111: PROVA EM BRANCO | D111: NÃO TEVE ELIMINATORIAS

Sheet FLD
C2: CLASSIFICAÇÃO OFICIAL DO CAMPEONATO BRASILEIRO 2013 DE ARRANCADA 402 M.
C5: Evento | D5: 1º | H5: 2º | L5: 3º | P5: 4º | T5: 5º | X5: 6º
C6: Local | D6: VELOPARK | H6: Curitiba | L6: VELOPARK | P6: VELOPARK | X6: VELOAPARK
C7: Data | D7: 15 a 17/03 | H7: 03 a 05/05/2013 | L7: 16 a 18/08/2013 | P7: 27 a 29/09/2013 | X7: 17/11
A9: FORÇA LIVRE DIANTEIRA FLD | D9: bonus | E9: bonus | F9: bonus | H9: bonus | I9: bonus | J9: bonus | L9: bonus | M9: bonus | N9: bonus | P9: bonus | Q9: bonus | R9: bonus | T9: bonus | U9: bonus | V9: bonus | X9: bonus | Y9: bonus | Z9: bonus
A10: POS | B10: PILOTO | C10: Nº | D10: partic. | E10: record | F10: classif. | G10: Prova | H10: partic. | I10: record | J10: classif. | K10: Prova | L10: partic. | M10: record | N10: classif. | O10: Prova | P10: partic. | Q10: record | R10: classif. | S10: Prova | T10: partic. | U10: record | V10: classif. | W10: Prova | X10: partic. | Y10: record | Z10: classif. | AA10: Prova | AB10: TOTAL
A11: 1º | B11: AIRTON CARRARO | C11: 9 | D11: X | F11: 75 | G11: 100 | H11: X | J11: 80 | L11: X | N11: 75 | O11: 40 | P11: X | R11: 60 | S11: 60 | X11: 50 | Z11: 140 | AA11: 120 | AB11: =SUM(D11:AA11) -> 800
A12: 2º | B12: LUIZ DONATO | C12: 494 | D12: 0 | F12: 0 | G12: 0 | H12: 0 | J12: 0 | L12: X | M12: 20 | N12: 65 | O12: 100 | P12: X | R12: 70 | S12: 100 | X12: 25 | Z12: 160 | AA12: 160 | AB12: 700
A13: 3º | B13: JÕAO TASSO | C13: 39 | D13: 0 | F13: 0 | G13: 0 | H13: 0 | J13: 0 | L13: X | N13: 80 | O13: 0 | P13: X | R13: 75 | S13: 60 | X13: 25 | Z13: 130 | AA13: 120 | AB13: 490
A14: 4º | B14: JADER KROLOW | C14: 938 | D14: X | F14: 60 | G14: 0 | H14: 0 | J14: 0 | L14: X | N14: 60 | O14: 40 | P14: X | R14: 65 | S14: 40 | X14: 40 | Z14: 120 | AA14: 0 | AB14: 425
A15: 5º | B15: JOSÉ R. PASQUALETE | C15: 55 | D15: X | F15: 70 | G15: 80 | H15: 0 | J15: 0 | L15: X | N15: 70 | O15: 40 | P15: 0 | R15: 0 | S15: 0 | X15: 25 | Z15: 110 | AA15: 0 | AB15: 395
A16: 6º | B16: CARLOS BENTO | C16: 286 | D16: 0 | F16: 0 | G16: 0 | H16: 0 | J16: 0 | L16: 0 | N16: 0 | O16: 0 | P16: 0 | R16: 0 | S16: 0 | X16: 10 | Y16: 20 | Z16: 150 | AA16: 200 | AB16: 380
A17: 7º | B17: JEAN CARLO SISTI | C17: 206 | D17: X | F17: 65 | G17: 0 | H17: 0 | J17: 0 | L17: X | N17: 55 | O17: 0 | P17: 0 | R17: 0 | S17: 0 | X17: 25 | Z17: 100 | AA17: 0 | AB17: 245
A18: 8º | B18: EDUARDO BONAMIGO | C18: 25 | D18: 0 | F18: 0 | G18: 0 | H18: 0 | J18: 0 | L18: 0 | N18: 0 | O18: 0 | P18: 5 | R18: 80 | S18: 80 | X18: 0 | Z18: 0 | AA18: 0 | AB18: 165
A19: 9º | B19: ALESSANDRO BARRANCO | C19: 26 | D19: 0 | F19: 0 | G19: 0 | H19: 0 | J19: 0 | L19: 0 | N19: 0 | O19: 0 | P19: 5 | R19: 55 | S19: 40 | X19: 0 | Z19: 0 | AA19: 0 | AB19: 100
A20: 10º | B20: ELIZALDO PAIZ | C20: 78 | D20: 0 | F20: 0 | G20: 0 | H20: 0 | J20: 0 | L20: 0 | N20: 0 | O20: 0 | P20: 5 | R20: 50 | S20: 40 | X20: 0 | Z20: 0 | AA20: 0 | AB20: 95
A21: 11º | B21: MAICON CANESIN | C21: 285 | D21: 5 | F21: 80 | G21: 0 | H21: 0 | J21: 0 | L21: 0 | N21: 0 | O21: 0 | P21: 0 | R21: 0 | S21: 0 | X21: 0 | Z21: 0 | AA21: 0 | AB21: 85
A22: 12º | B22: SERGIO GANGA | C22: 3900 | D22: 0 | F22: 0 | G22: 0 | H22: 5 | J22: 75 | L22: 0 | N22: 0 | O22: 0 | P22: 0 | R22: 0 | S22: 0 | X22: 0 | Z22: 0 | AA22: 0 | AB22: 80
A23: 13º | B23: IVO HOLTZ | C23: 1700 | D23: 0 | F23: 0 | G23: 0 | H23: 5 | J23: 70 | L23: 0 | N23: 0 | O23: 0 | P23: 0 | R23: 0 | S23: 0 | X23: 0 | Z23: 0 | AA23: 0 | AB23: 75
A24: 14º | B24: TATIANA XAVIER | C24: 46 | D24: 0 | F24: 0 | G24: 0 | H24: 5 | J24: 65 | L24: 0 | N24: 0 | O24: 0 | P24: 0 | R24: 0 | S24: 0 | X24: 0 | Z24: 0 | AA24: 0 | AB24: 70
A25: 15º | AB25: 0
A26: 16º | AB26: 0
A27: 17º | AB27: 0
A28: 18º | AB28: 0
A29: 19º | AB29: 0
A30: 20º | AB30: 0
A31: 21º | AB31: 0
A32: 22º | AB32: 0
A33: 23º | AB33: 0
A34: 24º | AB34: 0
A35: 25º | AB35: 0
A36: 26º | AB36: 0
A37: 27º | AB37: 0
A38: 28º | AB38: 0
A39: 29º | AB39: 0
A40: 30º | AB40: 0
A41: 31º | AB41: 0
A42: 32º | AB42: 0
A43: 33º | AB43: =SUM(D43:AA43) -> 0
A44: 34º | AB44: 0
A45: 35º | AB45: 0
A46: 36º | AB46: 0
A47: 37º | AB47: 0
A48: 38º | AB48: 0
A49: 39º | AB49: 0
A50: 40º | AB50: 0
A51: 41º | AB51: 0
A52: 42º | AB52: 0
A53: 43º | AB53: 0
A54: 44º | AB54: 0
A55: 45º | AB55: 0
A56: 46º | AB56: 0
A57: 47º | AB57: 0
A58: 48º | AB58: 0
A59: 49º | AB59: 0
A60: 50º | AB60: 0
A61: 51º | AB61: 0
A62: 52º | AB62: 0
A63: 53º | AB63: 0
A64: 54º | AB64: 0
A65: 55º | AB65: 0
A66: 56º | AB66: 0
A67: 57º | AB67: 0
A68: 58º | AB68: 0
A69: 59º | AB69: 0
A70: 60º | AB70: 0
A71: 61º | AB71: 0
A72: 62º | AB72: 0
A73: 63º | AB73: 0
A74: 64º | AB74: 0
A75: 65º | AB75: =SUM(D75:AA75) -> 0
A76: 66º | AB76: 0
A77: 67º | AB77: 0
A78: 68º | AB78: 0
A79: 69º | AB79: 0
A80: 70º | AB80: 0
A81: 71º | AB81: 0
A82: 72º | AB82: 0
A83: 73º | AB83: 0
A84: 74º | AB84: 0
A85: 75º | AB85: 0
A86: 76º | AB86: 0
A87: 77º | AB87: 0
A88: 78º | AB88: 0
A89: 79º | AB89: 0
A90: 80º | AB90: 0
A91: 81º | AB91: 0
A92: 82º | AB92: 0
A93: 83º | AB93: 0
A94: 84º | AB94: 0
A95: 85º | AB95: 0
A96: 86º | AB96: 0
A97: 87º | AB97: 0
A98: 88º | AB98: 0
A99: 89º | AB99: 0
A100: 90º | AB100: 0
B102: LEGENDA
B103: BONIFICAÇÃO POR ETAPA PARTICIPADA
B104: PARTICIPOU DE 1 ETAPA= | D104: 5
B105: PARTICIPOU DE 2 ETAPAS= | D105: 1X+10
B106: PARTICIPOU DE 3 ETAPAS= | D106: 2X+15
B107: PARTICIPOU DE 4 ETAPAS= | D107: 3X+25
B108: PARTICIPOU DE 5 ETAPAS | D108: 4X+40
B109: PARTICIPOU DE 6 ETAPAS= | D109: 5X+50
B110: BONUS RECORD | D110: 20
B111: PROVA EM BRANCO | D111: NÃO TEVE ELIMINATORIAS

Sheet STT
C2: CLASSIFICAÇÃO OFICIAL DO CAMPEONATO BRASILEIRO 2013 DE ARRANCADA 402 M.
C5: Evento | D5: 1º | H5: 2º | L5: 3º | P5: 4º | T5: 5º | X5: 6º
C6: Local | D6: VELOPARK | H6: Curitiba | L6: VELOPARK | P6: VELOPARK | X6: VELOPARK
C7: Data | D7: 15 a 17/03 | H7: 03 a 05/05/2013 | L7: 16 a 18/08/2013 | P7: 27 a 29/09/2013 | X7: 17/11
A9: STREET TRAÇÃO TRASEIRA STT | D9: bonus | E9: bonus | F9: bonus | H9: bonus | I9: bonus | J9: bonus | L9: bonus | M9: bonus | N9: bonus | P9: bonus | Q9: bonus | R9: bonus | T9: bonus | U9: bonus | V9: bonus | X9: bonus | Y9: bonus | Z9: bonus
A10: POS | B10: PILOTO | C10: Nº | D10: partic. | E10: record | F10: classif. | G10: Prova | H10: partic. | I10: record | J10: classif. | K10: Prova | L10: partic. | M10: record | N10: classif. | O10: Prova | P10: partic. | Q10: record | R10: classif. | S10: Prova | T10: partic. | U10: record | V10: classif. | W10: Prova | X10: partic. | Y10: record | Z10: classif. | AA10: Prova | AB10: TOTAL
A11: 1º | B11: GIOVANI CHEMIN | C11: 1979 | D11: X | F11: 80 | G11: 100 | H11: X | I11: 20 | J11: 80 | L11: X | N11: 75 | O11: 80 | P11: X | R11: 70 | S11: 60 | X11: 50 | Z11: 130 | AA11: 80 | AB11: =SUM(D11:AA11) -> 825
A12: 2º | B12: CRISTIAN CORDEIRO | C12: 332 | D12: 0 | F12: 0 | G12: 0 | H12: 0 | J12: 0 | L12: X | M12: 20 | N12: 80 | O12: 100 | P12: X | R12: 80 | S12: 60 | X12: 25 | Z12: 160 | AA12: 200 | AB12: 725
A13: 3º | B13: ARIELSON MUTERLE | C13: 167 | D13: X | F13: 60 | G13: 40 | H13: 0 | J13: 0 | L13: X | N13: 65 | O13: 60 | P13: X | R13: 65 | S13: 80 | X13: 40 | Z13: 140 | AA13: 160 | AB13: 710
A14: 4º | B14: VILSON FERREORA | C14: 2 | D14: 0 | F14: 0 | G14: 0 | H14: 0 | J14: 0 | L14: 0 | N14: 0 | O14: 0 | P14: X | R14: 75 | S14: 100 | X14: 15 | Z14: 120 | AA14: 120 | AB14: 430
A15: 5º | B15: PEDRO PISKA | C15: 1978 | D15: 0 | F15: 0 | G15: 0 | H15: X | J15: 65 | L15: 0 | N15: 0 | O15: 0 | P15: 0 | R15: 0 | S15: 0 | X15: 15 | Z15: 150 | AA15: 80 | AB15: 310
A16: 6º | B16: MARCIO VALMOR | C16: 332 | D16: X | E16: 20 | F16: 75 | G16: 80 | H16: 10 | J16: 75 | L16: 0 | N16: 0 | O16: 0 | P16: 0 | R16: 0 | S16: 0 | X16: 0 | Z16: 0 | AA16: 0 | AB16: 260
A17: 7º | B17: GILMAR TROVO | C17: 79 | D17: 0 | F17: 0 | G17: 0 | H17: X | J17: 40 | L17: 0 | N17: 0 | O17: 0 | P17: 0 | R17: 0 | S17: 0 | X17: 15 | Z17: 110 | AA17: 80 | AB17: 245
A18: 8º | B18: CRISTIANO BATISTA | C18: 3110 | D18: 0 | F18: 0 | G18: 0 | H18: 0 | J18: 0 | L18: X | N18: 70 | O18: 60 | P18: 10 | R18: 60 | S18: 40 | X18: 0 | Z18: 0 | AA18: 0 | AB18: 240
A19: 9º | B19: IVAN SOUZA | C19: 788 | D19: 0 | F19: 0 | G19: 0 | H19: 0 | J19: 0 | L19: 0 | N19: 0 | O19: 0 | P19: 0 | R19: 0 | S19: 0 | X19: 10 | Z19: 100 | AA19: 120 | AB19: 230
A20: 10º | B20: RONEI HUMMES | C20: 30 | D20: X | F20: 55 | G20: 40 | H20: 0 | J20: 0 | L20: 10 | N20: 50 | O20: 40 | P20: 0 | R20: 0 | S20: 0 | X20: 0 | Z20: 0 | AA20: 0 | AB20: 195
A21: 11º | B21: MARCELO BELMIRO | C21: 20 | D21: 0 | F21: 0 | G21: 0 | H21: X | J21: 25 | L21: 10 | N21: 60 | O21: 40 | P21: 0 | R21: 0 | S21: 0 | X21: 0 | Z21: 0 | AA21: 0 | AB21: 135
A22: 12º | B22: EDILSON HEEMAN | C22: 76 | D22: 0 | F22: 0 | G22: 0 | H22: X | J22: 50 | L22: 10 | N22: 55 | O22: 0 | P22: 0 | R22: 0 | S22: 0 | X22: 0 | Z22: 0 | AA22: 0 | AB22: 115
A23: 13º | B23: GIOVANNI IARROCHESKI | C23: 13 | D23: 5 | F23: 70 | G23: 40 | H23: 0 | J23: 0 | L23: 0 | N23: 0 | O23: 0 | P23: 0 | R23: 0 | S23: 0 | X23: 0 | Z23: 0 | AA23: 0 | AB23: 115
A24: 14º | B24: ALVARO TEXEIRA DIAS | C24: 7 | D24: 5 | F24: 65 | G24: 40 | H24: 0 | J24: 0 | L24: 0 | N24: 0 | O24: 0 | P24: 0 | R24: 0 | S24: 0 | X24: 0 | Z24: 0 | AA24: 0 | AB24: 110
A25: 15º | B25: VITOR CASARIN | C25: 1818 | D25: 0 | F25: 0 | G25: 0 | H25: 0 | J25: 0 | L25: 0 | N25: 0 | O25: 0 | P25: 5 | R25: 55 | S25: 40 | X25: 0 | Z25: 0 | AA25: 0 | AB25: 100
A26: 16º | B26: CLOVIS WATCHMANN | C26: 25 | D26: 0 | F26: 0 | G26: 0 | H26: 0 | J26: 0 | L26: 0 | N26: 0 | O26: 0 | P26: 5 | R26: 50 | S26: 40 | X26: 0 | Z26: 0 | AA26: 0 | AB26: 95
A27: 17º | B27: LUCAS MIRANDA | C27: 46 | D27: 0 | F27: 0 | G27: 0 | H27: 5 | J27: 70 | L27: 0 | N27: 0 | O27: 0 | P27: 0 | R27: 0 | S27: 0 | X27: 0 | Z27: 0 | AA27: 0 | AB27: 75
A28: 18º | B28: JOSE CARVALHO | C28: 6 | D28: 0 | F28: 0 | G28: 0 | H28: 5 | J28: 60 | L28: 0 | N28: 0 | O28: 0 | P28: 0 | R28: 0 | S28: 0 | X28: 0 | Z28: 0 | AA28: 0 | AB28: 65
A29: 19º | B29: EMERSON HEEMAN | C29: 170 | D29: 0 | F29: 0 | G29: 0 | H29: 5 | J29: 55 | L29: 0 | N29: 0 | O29: 0 | P29: 0 | R29: 0 | S29: 0 | X29: 0 | Z29: 0 | AA29: 0 | AB29: 60
A30: 20º | B30: DANILO AIZONA | C30: 56 | D30: 0 | F30: 0 | G30: 0 | H30: 5 | J30: 45 | L30: 0 | N30: 0 | O30: 0 | P30: 0 | R30: 0 | S30: 0 | X30: 0 | Z30: 0 | AA30: 0 | AB30: 50
A31: 21º | B31: GILCARLO PROSDOCIMO | C31: 75 | D31: 0 | F31: 0 | G31: 0 | H31: 5 | J31: 35 | L31: 0 | N31: 0 | O31: 0 | P31: 0 | R31: 0 | S31: 0 | X31: 0 | Z31: 0 | AA31: 0 | AB31: 40
A32: 22º | B32: LEANDRO KOVALSKI | C32: 38 | D32: 0 | F32: 0 | G32: 0 | H32: 5 | J32: 30 | L32: 0 | N32: 0 | O32: 0 | P32: 0 | R32: 0 | S32: 0 | X32: 0 | Z32: 0 | AA32: 0 | AB32: 35
A33: 23º | B33: LUIZ GRECA | C33: 17 | D33: 0 | F33: 0 | G33: 0 | H33: 5 | J33: 20 | L33: 0 | N33: 0 | O33: 0 | P33: 0 | R33: 0 | S33: 0 | X33: 0 | Z33: 0 | AA33: 0 | AB33: 25
A34: 24º | B34: CLEBER BORGES | C34: 69 | D34: 0 | F34: 0 | G34: 0 | H34: 5 | J34: 15 | L34: 0 | N34: 0 | O34: 0 | P34: 0 | R34: 0 | S34: 0 | X34: 0 | Z34: 0 | AA34: 0 | AB34: 20
A35: 25º | AB35: 0
A36: 26º | AB36: 0
A37: 27º | AB37: 0
A38: 28º | AB38: 0
A39: 29º | AB39: 0
A40: 30º | AB40: 0
A41: 31º | AB41: 0
A42: 32º | AB42: 0
A43: 33º | AB43: =SUM(D43:AA43) -> 0
A44: 34º | AB44: 0
A45: 35º | AB45: 0
A46: 36º | AB46: 0
A47: 37º | AB47: 0
A48: 38º | AB48: 0
A49: 39º | AB49: 0
A50: 40º | AB50: 0
A51: 41º | AB51: 0
A52: 42º | AB52: 0
A53: 43º | AB53: 0
A54: 44º | AB54: 0
A55: 45º | AB55: 0
A56: 46º | AB56: 0
A57: 47º | AB57: 0
A58: 48º | AB58: 0
A59: 49º | AB59: 0
A60: 50º | AB60: 0
A61: 51º | AB61: 0
A62: 52º | AB62: 0
A63: 53º | AB63: 0
A64: 54º | AB64: 0
A65: 55º | AB65: 0
A66: 56º | AB66: 0
A67: 57º | AB67: 0
A68: 58º | AB68: 0
A69: 59º | AB69: 0
A70: 60º | AB70: 0
A71: 61º | AB71: 0
A72: 62º | AB72: 0
A73: 63º | AB73: 0
A74: 64º | AB74: 0
A75: 65º | AB75: =SUM(D75:AA75) -> 0
A76: 66º | AB76: 0
A77: 67º | AB77: 0
A78: 68º | AB78: 0
A79: 69º | AB79: 0
A80: 70º | AB80: 0
A81: 71º | AB81: 0
A82: 72º | AB82: 0
A83: 73º | AB83: 0
A84: 74º | AB84: 0
A85: 75º | AB85: 0
A86: 76º | AB86: 0
A87: 77º | AB87: 0
A88: 78º | AB88: 0
A89: 79º | AB89: 0
A90: 80º | AB90: 0
A91: 81º | AB91: 0
A92: 82º | AB92: 0
A93: 83º | AB93: 0
A94: 84º | AB94: 0
A95: 85º | AB95: 0
A96: 86º | AB96: 0
A97: 87º | AB97: 0
A98: 88º | AB98: 0
A99: 89º | AB99: 0
A100: 90º | AB100: 0
B102: LEGENDA
B103: BONIFICAÇÃO POR ETAPA PARTICIPADA
B104: PARTICIPOU DE 1 ETAPA= | D104: 5
B105: PARTICIPOU DE 2 ETAPAS= | D105: 1X+10
B106: PARTICIPOU DE 3 ETAPAS= | D106: 2X+15
B107: PARTICIPOU DE 4 ETAPAS= | D107: 3X+25
B108: PARTICIPOU DE 5 ETAPAS | D108: 4X+40
B109: PARTICIPOU DE 6 ETAPAS= | D109: 5X+50
B110: BONUS RECORD | D110: 20
B111: PROVA EM BRANCO | D111: NÃO TEVE ELIMINATORIAS

Sheet FLT
C2: CLASSIFICAÇÃO OFICIAL DO CAMPEONATO BRASILEIRO 2013 DE ARRANCADA 402 M.
C5: Evento | D5: 1º | H5: 2º | L5: 3º | P5: 4º | T5: 5º | X5: 6º
C6: Local | D6: VELOPARK | H6: Curitiba | L6: VELOPARK | P6: VELOPARK | X6: VELOPARK
C7: Data | D7: 15 a 17/03 | H7: 03 a 05/05/2013 | L7: 16 a 18/08/2013 | P7: 27 a 29/09/2013 | X7: 17/11
A9: FORÇA LIVRE TRASEIRA FLT | D9: bonus | E9: bonus | F9: bonus | H9: bonus | I9: bonus | J9: bonus | L9: bonus | M9: bonus | N9: bonus | P9: bonus | Q9: bonus | R9: bonus | T9: bonus | U9: bonus | V9: bonus | X9: bonus | Y9: bonus | Z9: bonus
A10: POS | B10: PILOTO | C10: Nº | D10: partic. | E10: record | F10: classif. | G10: Prova | H10: partic. | I10: record | J10: classif. | K10: Prova | L10: partic. | M10: record | N10: classif. | O10: Prova | P10: partic. | Q10: record | R10: classif. | S10: Prova | T10: partic. | U10: record | V10: classif. | W10: Prova | X10: partic. | Y10: record | Z10: classif. | AA10: Prova | AB10: TOTAL
A11: 1º | B11: ANDERSON MALTEZO | C11: 11 | D11: X | F11: 70 | G11: 60 | H11: X | J11: 70 | L11: X | N11: 65 | O11: 100 | P11: X | R11: 75 | S11: 100 | X11: 50 | Z11: 130 | AA11: 160 | AB11: =SUM(D11:AA11) -> 880
A12: 2º | B12: ALEX SANDER SILVA | C12: 181 | D12: X | F12: 75 | G12: 100 | H12: X | J12: 80 | L12: X | M12: 20 | N12: 80 | O12: 60 | P12: 0 | R12: 0 | S12: 0 | X12: 40 | Z12: 140 | AA12: 0 | AB12: 595
A13: 3º | B13: GLEISON MOREIRA | C13: 2 | D13: 0 | F13: 0 | G13: 0 | H13: 0 | J13: 0 | L13: X | N13: 75 | O13: 80 | P13: X | R13: 80 | S13: 0 | X13: 25 | Z13: 150 | AA13: 80 | AB13: 490
A14: 4º | B14: MARCOS MARTINS | C14: 10 | D14: 0 | F14: 0 | G14: 0 | H14: X | J14: 65 | L14: 0 | N14: 0 | O14: 0 | P14: 0 | R14: 0 | S14: 0 | X14: 15 | Z14: 160 | AA14: 200 | AB14: 440
A15: 5º | B15: VALDEMIR BORBA | C15: 197 | D15: 0 | F15: 0 | G15: 0 | H15: 0 | J15: 0 | L15: X | N15: 70 | O15: 60 | P15: 0 | R15: 0 | S15: 0 | X15: 15 | Z15: 120 | AA15: 120 | AB15: 385
A16: 6º | B16: CRISTIAN F CASTRO | C16: 92 | D16: X | F16: 80 | G16: 80 | H16: 10 | I16: 20 | J16: 75 | L16: 0 | N16: 0 | O16: 0 | P16: 0 | R16: 0 | S16: 0 | X16: 0 | Z16: 0 | AA16: 0 | AB16: 265
A17: 7º | B17: RAFAEL MORENO | C17: 3 | D17: 0 | F17: 0 | G17: 0 | H17: 0 | J17: 0 | L17: 0 | N17: 0 | O17: 0 | P17: 0 | R17: 0 | S17: 0 | X17: 5 | Z17: 110 | AA17: 0 | AB17: 115
A18: 8º | AB18: 0
A19: 9º | AB19: 0
A20: 10º | AB20: 0
A21: 11º | AB21: 0
A22: 12º | AB22: 0
A23: 13º | AB23: 0
A24: 14º | AB24: 0
A25: 15º | AB25: 0
A26: 16º | AB26: 0
A27: 17º | AB27: 0
A28: 18º | AB28: 0
A29: 19º | AB29: 0
A30: 20º | AB30: 0
A31: 21º | AB31: 0
A32: 22º | AB32: 0
A33: 23º | AB33: 0
A34: 24º | AB34: 0
A35: 25º | AB35: 0
A36: 26º | AB36: 0
A37: 27º | AB37: 0
A38: 28º | AB38: 0
A39: 29º | AB39: 0
A40: 30º | AB40: 0
A41: 31º | AB41: 0
A42: 32º | AB42: 0
A43: 33º | AB43: =SUM(D43:AA43) -> 0
A44: 34º | AB44: 0
A45: 35º | AB45: 0
A46: 36º | AB46: 0
A47: 37º | AB47: 0
A48: 38º | AB48: 0
A49: 39º | AB49: 0
A50: 40º | AB50: 0
A51: 41º | AB51: 0
A52: 42º | AB52: 0
A53: 43º | AB53: 0
A54: 44º | AB54: 0
A55: 45º | AB55: 0
A56: 46º | AB56: 0
A57: 47º | AB57: 0
A58: 48º | AB58: 0
A59: 49º | AB59: 0
A60: 50º | AB60: 0
A61: 51º | AB61: 0
A62: 52º | AB62: 0
A63: 53º | AB63: 0
A64: 54º | AB64: 0
A65: 55º | AB65: 0
A66: 56º | AB66: 0
A67: 57º | AB67: 0
A68: 58º | AB68: 0
A69: 59º | AB69: 0
A70: 60º | AB70: 0
A71: 61º | AB71: 0
A72: 62º | AB72: 0
A73: 63º | AB73: 0
A74: 64º | AB74: 0
A75: 65º | AB75: =SUM(D75:AA75) -> 0
A76: 66º | AB76: 0
A77: 67º | AB77: 0
A78: 68º | AB78: 0
A79: 69º | AB79: 0
A80: 70º | AB80: 0
A81: 71º | AB81: 0
A82: 72º | AB82: 0
A83: 73º | AB83: 0
A84: 74º | AB84: 0
A85: 75º | AB85: 0
A86: 76º | AB86: 0
A87: 77º | AB87: 0
A88: 78º | AB88: 0
A89: 79º | AB89: 0
A90: 80º | AB90: 0
A91: 81º | AB91: 0
A92: 82º | AB92: 0
A93: 83º | AB93: 0
A94: 84º | AB94: 0
A95: 85º | AB95: 0
A96: 86º | AB96: 0
A97: 87º | AB97: 0
A98: 88º | AB98: 0
A99: 89º | AB99: 0
A100: 90º | AB100: 0
B102: LEGENDA
B103: BONIFICAÇÃO POR ETAPA PARTICIPADA
B104: PARTICIPOU DE 1 ETAPA= | D104: 5
B105: PARTICIPOU DE 2 ETAPAS= | D105: 1X+10
B106: PARTICIPOU DE 3 ETAPAS= | D106: 2X+15
B107: PARTICIPOU DE 4 ETAPAS= | D107: 3X+25
B108: PARTICIPOU DE 5 ETAPAS | D108: 4X+40
B109: PARTICIPOU DE 6 ETAPAS= | D109: 5X+50
B110: BONUS RECORD | D110: 20
B111: PROVA EM BRANCO | D111: NÃO TEVE ELIMINATORIAS

Sheet XTM
C2: CLASSIFICAÇÃO OFICIAL DO CAMPEONATO BRASILEIRO 2013 DE ARRANCADA 402 M.
C5: Evento | D5: 1º | H5: 2º | L5: 3º | P5: 4º | T5: 5º | X5: 6º
C6: Local | D6: VELOPARK | H6: Curitiba | L6: VELOPARK | P6: VELOPARK | X6: VELOPARK
C7: Data | D7: 15 a 17/03 | H7: 03 a 05/05/2013 | L7: 16 a 18/08/2013 | P7: 27 a 29/09/2013 | X7: 17/11
A9: XTM 10.5 | D9: bonus | E9: bonus | F9: bonus | H9: bonus | I9: bonus | J9: bonus | L9: bonus | M9: bonus | N9: bonus | P9: bonus | Q9: bonus | R9: bonus | T9: bonus | U9: bonus | V9: bonus | X9: bonus | Y9: bonus | Z9: bonus
A10: POS | B10: PILOTO | C10: Nº | D10: partic. | E10: record | F10: classif. | G10: Prova | H10: partic. | I10: record | J10: classif. | K10: Prova | L10: partic. | M10: record | N10: classif. | O10: Prova | P10: partic. | Q10: record | R10: classif. | S10: Prova | T10: partic. | U10: record | V10: classif. | W10: Prova | X10: partic. | Y10: record | Z10: classif. | AA10: Prova | AB10: TOTAL
A11: 1º | B11: CRISTIANO JULIO | C11: 331 | D11: X | F11: 80 | G11: 100 | H11: X | J11: 75 | L11: X | N11: 80 | O11: 100 | P11: X | R11: 65 | S11: 80 | X11: 50 | Z11: 140 | AA11: 80 | AB11: =SUM(D11:AA11) -> 850
A12: 2º | B12: DANIEL RANIOWSKI | C12: 17 | D12: X | F12: 70 | G12: 40 | H12: X | J12: 80 | L12: 0 | N12: 0 | O12: 0 | P12: X | R12: 55 | S12: 0 | X12: 40 | Z12: 130 | AA12: 160 | AB12: 575
A13: 3º | B13: RAFAEL ANTONETTI | C13: 77 | D13: X | F13: 50 | G13: 0 | H13: 0 | J13: 0 | L13: X | N13: 60 | O13: 40 | P13: X | Q13: 20 | R13: 80 | S13: 100 | X13: 40 | Z13: 150 | AA13: 0 | AB13: 540
A14: 4º | B14: GELSON DIAS SILVA | C14: 11 | D14: X | F14: 40 | G14: 0 | H14: 0 | J14: 0 | L14: X | N14: 70 | O14: 60 | P14: 0 | R14: 0 | S14: 0 | X14: 25 | Z14: 120 | AA14: 80 | AB14: 395
A15: 5º | B15: CARLOS DAUD | C15: 245 | D15: 0 | F15: 0 | G15: 0 | H15: 0 | J15: 0 | L15: 0 | N15: 0 | O15: 0 | P15: 0 | R15: 0 | S15: 0 | X15: 5 | Y15: 20 | Z15: 160 | AA15: 200 | AB15: 385
A16: 6º | B16: FABIO COSTA | C16: 21 | D16: 0 | F16: 0 | G16: 0 | H16: X | J16: 70 | L16: X | N16: 65 | O16: 0 | P16: 15 | R16: 75 | S16: 0 | X16: 0 | Z16: 0 | AA16: 0 | AB16: 225
A17: 7º | B17: VITOR ANERIS | C17: 88 | D17: 0 | F17: 0 | G17: 0 | H17: 0 | J17: 0 | L17: 0 | N17: 0 | O17: 0 | P17: 0 | R17: 0 | S17: 0 | X17: 5 | Z17: 110 | AA17: 80 | AB17: 195
A18: 8º | B18: RICARDO M. VAZ | C18: 471 | D18: 5 | F18: 75 | G18: 80 | H18: 0 | J18: 0 | L18: 0 | N18: 0 | O18: 0 | P18: 0 | R18: 0 | S18: 0 | X18: 0 | Z18: 0 | AA18: 0 | AB18: 160
A19: 9º | B19: ALEXANDRE LOURENÇO | C19: 44 | D19: 0 | F19: 0 | G19: 0 | H19: 0 | J19: 0 | L19: 5 | N19: 75 | O19: 60 | P19: 0 | R19: 0 | S19: 0 | X19: 0 | Z19: 0 | AA19: 0 | AB19: 140
A20: 10º | B20: SANDRO BRUNO | C20: 234 | D20: 5 | F20: 65 | G20: 60 | H20: 0 | J20: 0 | L20: 0 | N20: 0 | O20: 0 | P20: 0 | R20: 0 | S20: 0 | X20: 0 | Z20: 0 | AA20: 0 | AB20: 130
A21: 11º | B21: PEDRO NUNES | C21: 111 | D21: 0 | F21: 0 | G21: 0 | H21: 0 | J21: 0 | L21: 0 | N21: 0 | O21: 0 | P21: 5 | R21: 60 | S21: 60 | X21: 0 | Z21: 0 | AA21: 0 | AB21: 125
A22: 12º | B22: CRISTIAN CORDEIRO | C22: 333 | D22: 0 | F22: 0 | G22: 0 | H22: 0 | J22: 0 | L22: 0 | N22: 0 | O22: 0 | P22: 5 | R22: 70 | S22: 40 | X22: 0 | Z22: 0 | AA22: 0 | AB22: 115
A23: 13º | B23: ADRIANO REIS | C23: 74 | D23: 0 | F23: 0 | G23: 0 | H23: 5 | J23: 65 | L23: 0 | N23: 0 | O23: 0 | P23: 0 | R23: 0 | S23: 0 | X23: 0 | Z23: 0 | AA23: 0 | AB23: 70
A24: 14º | B24: FLORIANO SOEIRO | C24: 47 | D24: 5 | F24: 60 | G24: 0 | H24: 0 | J24: 0 | L24: 0 | N24: 0 | O24: 0 | P24: 0 | R24: 0 | S24: 0 | X24: 0 | Z24: 0 | AA24: 0 | AB24: 65
A25: 15º | B25: CLEVERSON BERTOLIN | C25: 111 | D25: 0 | F25: 0 | G25: 0 | H25: 0 | J25: 0 | L25: 5 | N25: 55 | O25: 0 | P25: 0 | R25: 0 | S25: 0 | X25: 0 | Z25: 0 | AA25: 0 | AB25: 60
A26: 16º | B26: GUSTAVO MONTEIRO | C26: 84 | D26: 5 | F26: 55 | G26: 0 | H26: 0 | J26: 0 | L26: 0 | N26: 0 | O26: 0 | P26: 0 | R26: 0 | S26: 0 | X26: 0 | Z26: 0 | AA26: 0 | AB26: 60
A27: 17º | B27: JEAN DOLBERTGH | C27: 2501 | D27: 0 | F27: 0 | G27: 0 | H27: 5 | J27: 55 | L27: 0 | N27: 0 | O27: 0 | P27: 0 | R27: 0 | S27: 0 | X27: 0 | Z27: 0 | AA27: 0 | AB27: 60
A28: 18º | AB28: 0
A29: 19º | AB29: 0
A30: 20º | AB30: 0
A31: 21º | AB31: 0
A32: 22º | AB32: 0
A33: 23º | AB33: 0
A34: 24º | AB34: 0
A35: 25º | AB35: 0
A36: 26º | AB36: 0
A37: 27º | AB37: 0
A38: 28º | AB38: 0
A39: 29º | AB39: 0
A40: 30º | AB40: 0
A41: 31º | AB41: 0
A42: 32º | AB42: 0
A43: 33º | AB43: =SUM(D43:AA43) -> 0
A44: 34º | AB44: 0
A45: 35º | AB45: 0
A46: 36º | AB46: 0
A47: 37º | AB47: 0
A48: 38º | AB48: 0
A49: 39º | AB49: 0
A50: 40º | AB50: 0
A51: 41º | AB51: 0
A52: 42º | AB52: 0
A53: 43º | AB53: 0
A54: 44º | AB54: 0
A55: 45º | AB55: 0
A56: 46º | AB56: 0
A57: 47º | AB57: 0
A58: 48º | AB58: 0
A59: 49º | AB59: 0
A60: 50º | AB60: 0
A61: 51º | AB61: 0
A62: 52º | AB62: 0
A63: 53º | AB63: 0
A64: 54º | AB64: 0
A65: 55º | AB65: 0
A66: 56º | AB66: 0
A67: 57º | AB67: 0
A68: 58º | AB68: 0
A69: 59º | AB69: 0
A70: 60º | AB70: 0
A71: 61º | AB71: 0
A72: 62º | AB72: 0
A73: 63º | AB73: 0
A74: 64º | AB74: 0
A75: 65º | AB75: =SUM(D75:AA75) -> 0
A76: 66º | AB76: 0
A77: 67º | AB77: 0
A78: 68º | AB78: 0
A79: 69º | AB79: 0
A80: 70º | AB80: 0
A81: 71º | AB81: 0
A82: 72º | AB82: 0
A83: 73º | AB83: 0
A84: 74º | AB84: 0
A85: 75º | AB85: 0
A86: 76º | AB86: 0
A87: 77º | AB87: 0
A88: 78º | AB88: 0
A89: 79º | AB89: 0
A90: 80º | AB90: 0
A91: 81º | AB91: 0
A92: 82º | AB92: 0
A93: 83º | AB93: 0
A94: 84º | AB94: 0
A95: 85º | AB95: 0
A96: 86º | AB96: 0
A97: 87º | AB97: 0
A98: 88º | AB98: 0
A99: 89º | AB99: 0
A100: 90º | AB100: 0
B102: LEGENDA
B103: BONIFICAÇÃO POR ETAPA PARTICIPADA
B104: PARTICIPOU DE 1 ETAPA= | D104: 5
B105: PARTICIPOU DE 2 ETAPAS= | D105: 1X+10
B106: PARTICIPOU DE 3 ETAPAS= | D106: 2X+15
B107: PARTICIPOU DE 4 ETAPAS= | D107: 3X+25
B108: PARTICIPOU DE 5 ETAPAS | D108: 4X+40
B109: PARTICIPOU DE 6 ETAPAS= | D109: 5X+50
B110: BONUS RECORD | D110: 20
B111: PROVA EM BRANCO | D111: NÃO TEVE ELIMINATORIAS

Sheet PM
C2: CLASSIFICAÇÃO OFICIAL DO CAMPEONATO BRASILEIRO 2013 DE ARRANCADA 402 M.
C5: Evento | D5: 1º | H5: 2º | L5: 3º | P5: 4º | T5: 5º | X5: 6º
C6: Local | D6: VELOPARK | H6: Curitiba | L6: VELOPARK | P6: VELOPARK | X6: VELOPARK
C7: Data | D7: 15 a 17/03 | H7: 03 a 05/05/2013 | L7: 16 a 18/08/2013 | P7: 27 a 29/09/2013 | X7: 17/11
A9: PRO MOD | D9: bonus | E9: bonus | F9: bonus | H9: bonus | I9: bonus | J9: bonus | L9: bonus | M9: bonus | N9: bonus | P9: bonus | Q9: bonus | R9: bonus | T9: bonus | U9: bonus | V9: bonus | X9: bonus | Y9: bonus | Z9: bonus
A10: POS | B10: PILOTO | C10: Nº | D10: partic. | E10: record | F10: classif. | G10: Prova | H10: partic. | I10: record | J10: classif. | K10: Prova | L10: partic. | M10: record | N10: classif. | O10: Prova | P10: partic. | Q10: record | R10: classif. | S10: Prova | T10: partic. | U10: record | V10: classif. | W10: Prova | X10: partic. | Y10: record | Z10: classif. | AA10: Prova | AB10: TOTAL
A11: 1º | B11: RODERJAN BUSATO | C11: 174 | D11: X | F11: 80 | G11: 100 | H11: X | J11: 80 | L11: X | N11: 80 | O11: 100 | P11: X | R11: 80 | S11: 100 | X11: 50 | Z11: 160 | AA11: 200 | AB11: =SUM(D11:AA11) -> 1030
A12: 2º | B12: ANTONIO ROSSALVO | C12: 777 | D12: 5 | F12: 75 | G12: 80 | H12: 0 | J12: 0 | L12: 0 | N12: 0 | O12: 0 | P12: 0 | R12: 0 | S12: 0 | X12: 0 | Z12: 0 | AA12: 0 | AB12: 160
A13: 3º | B13: FABIO COSTA | C13: 21 | D13: 0 | F13: 0 | G13: 0 | H13: 5 | J13: 75 | L13: 0 | N13: 0 | O13: 0 | P13: 0 | R13: 0 | S13: 0 | X13: 0 | Z13: 0 | AA13: 0 | AB13: 80
A14: 4º | B14: ANDREY JASPER | C14: 75 | D14: 0 | F14: 0 | G14: 0 | H14: 5 | J14: 70 | L14: 0 | N14: 0 | O14: 0 | P14: 0 | R14: 0 | S14: 0 | X14: 0 | Z14: 0 | AA14: 0 | AB14: 75
A15: 5º | B15: RAMON TOMAS | C15: 22 | D15: 0 | F15: 0 | G15: 0 | H15: 5 | J15: 65 | L15: 0 | N15: 0 | O15: 0 | P15: 0 | R15: 0 | S15: 0 | X15: 0 | Z15: 0 | AA15: 0 | AB15: 70
A16: 6º | B16: ALBERTO AIRES | C16: 10 | D16: 0 | F16: 0 | G16: 0 | H16: 5 | J16: 60 | L16: 0 | N16: 0 | O16: 0 | P16: 0 | R16: 0 | S16: 0 | X16: 0 | Z16: 0 | AA16: 0 | AB16: 65
A17: 7º | D17: 0 | AB17: 0
A18: 8º | AB18: 0
A19: 9º | AB19: 0
A20: 10º | AB20: 0
A21: 11º | AB21: 0
A22: 12º | AB22: 0
A23: 13º | AB23: 0
A24: 14º | AB24: 0
A25: 15º | AB25: 0
A26: 16º | AB26: 0
A27: 17º | AB27: 0
A28: 18º | AB28: 0
A29: 19º | AB29: 0
A30: 20º | AB30: 0
A31: 21º | AB31: 0
A32: 22º | AB32: 0
A33: 23º | AB33: 0
A34: 24º | AB34: 0
A35: 25º | AB35: 0
A36: 26º | AB36: 0
A37: 27º | AB37: 0
A38: 28º | AB38: 0
A39: 29º | AB39: 0
A40: 30º | AB40: 0
A41: 31º | AB41: 0
A42: 32º | AB42: 0
A43: 33º | AB43: =SUM(D43:AA43) -> 0
A44: 34º | AB44: 0
A45: 35º | AB45: 0
A46: 36º | AB46: 0
A47: 37º | AB47: 0
A48: 38º | AB48: 0
A49: 39º | AB49: 0
A50: 40º | AB50: 0
A51: 41º | AB51: 0
A52: 42º | AB52: 0
A53: 43º | AB53: 0
A54: 44º | AB54: 0
A55: 45º | AB55: 0
A56: 46º | AB56: 0
A57: 47º | AB57: 0
A58: 48º | AB58: 0
A59: 49º | AB59: 0
A60: 50º | AB60: 0
A61: 51º | AB61: 0
A62: 52º | AB62: 0
A63: 53º | AB63: 0
A64: 54º | AB64: 0
A65: 55º | AB65: 0
A66: 56º | AB66: 0
A67: 57º | AB67: 0
A68: 58º | AB68: 0
A69: 59º | AB69: 0
A70: 60º | AB70: 0
A71: 61º | AB71: 0
A72: 62º | AB72: 0
A73: 63º | AB73: 0
A74: 64º | AB74: 0
A75: 65º | AB75: =SUM(D75:AA75) -> 0
A76: 66º | AB76: 0
A77: 67º | AB77: 0
A78: 68º | AB78: 0
A79: 69º | AB79: 0
A80: 70º | AB80: 0
A81: 71º | AB81: 0
A82: 72º | AB82: 0
A83: 73º | AB83: 0
A84: 74º | AB84: 0
A85: 75º | AB85: 0
A86: 76º | AB86: 0
A87: 77º | AB87: 0
A88: 78º | AB88: 0
A89: 79º | AB89: 0
A90: 80º | AB90: 0
A91: 81º | AB91: 0
A92: 82º | AB92: 0
A93: 83º | AB93: 0
A94: 84º | AB94: 0
A95: 85º | AB95: 0
A96: 86º | AB96: 0
A97: 87º | AB97: 0
A98: 88º | AB98: 0
A99: 89º | AB99: 0
A100: 90º | AB100: 0
B102: LEGENDA
B103: BONIFICAÇÃO POR ETAPA PARTICIPADA
B104: PARTICIPOU DE 1 ETAPA= | D104: 5
B105: PARTICIPOU DE 2 ETAPAS= | D105: 1X+10
B106: PARTICIPOU DE 3 ETAPAS= | D106: 2X+15
B107: PARTICIPOU DE 4 ETAPAS= | D107: 3X+25
B108: PARTICIPOU DE 5 ETAPAS | D108: 4X+40
B109: PARTICIPOU DE 6 ETAPAS= | D109: 5X+50
B110: BONUS RECORD | D110: 20
B111: PROVA EM BRANCO | D111: NÃO TEVE ELIMINATORIAS

Sheet DL
C1: CLASSIFICAÇÃO OFICIAL DO CAMPEONATO BRASILEIRO 2013 DE ARRANCADA 402 M.
C5: Evento | D5: 1º | H5: 2º | L5: 3º | P5: 4º | T5: 5º | X5: 6º
C6: Local | D6: Velopark | H6: Curitiba | L6: VELOPARK | P6: VELOPARK | X6: VELOPARK
C7: Data | D7: 15 a 17/03/2013 | H7: 03 a 05/05/2013 | L7: 16 a 18/08/2013 | P7: 27 a 29/09/2013 | X7: 17/11
D8: Record | F8: 06,828 | H8: Record | J8: 59,999 | L8: Record | N8: 06,828 | P8: Record | R8: 59,999 | T8: Record | V8: 59,999 | X8: Record | Z8: 59,999
A9: DRAGSTER LIGTH | D9: bonus | E9: bonus | F9: bonus | H9: bonus | I9: bonus | J9: bonus | L9: bonus | M9: bonus | N9: bonus | P9: bonus | Q9: bonus | R9: bonus | T9: bonus | U9: bonus | V9: bonus | X9: bonus | Y9: bonus | Z9: bonus
A10: POS | B10: PILOTO | C10: Nº | D10: partic. | E10: record | F10: classif. | G10: Prova | H10: partic. | I10: record | J10: classif. | K10: Prova | L10: partic. | M10: record | N10: classif. | O10: Prova | P10: partic. | Q10: record | R10: classif. | S10: Prova | T10: partic. | U10: record | V10: classif. | W10: Prova | X10: partic. | Y10: record | Z10: classif. | AA10: Prova | AB10: TOTAL
A11: 1º | B11: MANOEL CASTANON | C11: 11 | D11: X | F11: 75 | G11: 80 | H11: X | J11: 80 | L11: X | N11: 80 | O11: 100 | P11: X | R11: 80 | S11: 100 | X11: 50 | Z11: 150 | AA11: 120 | AB11: =SUM(D11:AA11) -> 915
A12: 2º | B12: MARCELO GRIEBLER | C12: 48 | D12: X | F12: 80 | G12: 100 | H12: 0 | J12: 0 | L12: X | N12: 75 | O12: 80 | P12: 15 | R12: 75 | S12: 80 | X12: 0 | Z12: 0 | AA12: 0 | AB12: 505
A13: 3º | B13: JADER KROLOW | C13: 938 | D13: X | F13: 65 | G13: 0 | H13: 0 | J13: 0 | L13: 0 | N13: 0 | O13: 0 | P13: X | R13: 65 | S13: 60 | X13: 25 | Z13: 120 | AA13: 80 | AB13: 415
A14: 4º | B14: EDER CARDOSO | C14: 200 | D14: 0 | F14: 0 | G14: 0 | H14: 0 | J14: 0 | L14: 0 | N14: 0 | O14: 0 | P14: 0 | R14: 0 | S14: 0 | X14: 5 | Y14: 20 | Z14: 140 | AA14: 200 | AB14: 365
A15: 5º | B15: AIRTON CARRARO | C15: 7 | D15: 0 | F15: 0 | G15: 0 | H15: 0 | J15: 0 | L15: 0 | N15: 0 | O15: 0 | P15: X | R15: 70 | S15: 60 | X15: 15 | Z15: 130 | AA15: 80 | AB15: 355
A16: 6º | B16: MAURICIO DEBARBA | C16: 12 | D16: 0 | F16: 0 | G16: 0 | H16: 0 | J16: 0 | L16: 0 | N16: 0 | O16: 0 | P16: 0 | R16: 0 | S16: 0 | X16: 5 | Z16: 160 | AA16: 160 | AB16: 325
A17: 7º | B17: HELDER GANDOLFO | C17: 742 | D17: 0 | F17: 0 | G17: 0 | H17: 0 | J17: 0 | L17: 0 | N17: 0 | O17: 0 | P17: 0 | R17: 0 | S17: 0 | X17: 5 | Z17: 110 | AA17: 0 | AB17: 115
A18: 8º | B18: BRENO CASTANON | C18: 22 | D18: 5 | F18: 70 | G18: 0 | H18: 0 | J18: 0 | L18: 0 | N18: 0 | O18: 0 | P18: 0 | R18: 0 | S18: 0 | X18: 0 | Z18: 0 | AA18: 0 | AB18: 75
A19: 9º | AB19: 0
A20: 10º | AB20: 0
A21: 11º | AB21: 0
A22: 12º | AB22: 0
A23: 13º | AB23: 0
A24: 14º | AB24: 0
A25: 15º | AB25: 0
A26: 16º | AB26: 0
A27: 17º | AB27: 0
A28: 18º | AB28: 0
A29: 19º | AB29: 0
A30: 20º | AB30: 0
A31: 21º | AB31: 0
A32: 22º | AB32: 0
A33: 23º | AB33: 0
A34: 24º | AB34: 0
A35: 25º | AB35: 0
A36: 26º | AB36: 0
A37: 27º | AB37: 0
A38: 28º | AB38: 0
A39: 29º | AB39: 0
A40: 30º | AB40: 0
A41: 31º | AB41: 0
A42: 32º | AB42: 0
A43: 33º | AB43: =SUM(D43:AA43) -> 0
A44: 34º | AB44: 0
A45: 35º | AB45: 0
A46: 36º | AB46: 0
A47: 37º | AB47: 0
A48: 38º | AB48: 0
A49: 39º | AB49: 0
A50: 40º | AB50: 0
A51: 41º | AB51: 0
A52: 42º | AB52: 0
A53: 43º | AB53: 0
A54: 44º | AB54: 0
A55: 45º | AB55: 0
A56: 46º | AB56: 0
A57: 47º | AB57: 0
A58: 48º | AB58: 0
A59: 49º | AB59: 0
A60: 50º | AB60: 0
A61: 51º | AB61: 0
A62: 52º | AB62: 0
A63: 53º | AB63: 0
A64: 54º | AB64: 0
A65: 55º | AB65: 0
A66: 56º | AB66: 0
A67: 57º | AB67: 0
A68: 58º | AB68: 0
A69: 59º | AB69: 0
A70: 60º | AB70: 0
A71: 61º | AB71: 0
A72: 62º | AB72: 0
A73: 63º | AB73: 0
A74: 64º | AB74: 0
A75: 65º | AB75: =SUM(D75:AA75) -> 0
A76: 66º | AB76: 0
A77: 67º | AB77: 0
A78: 68º | AB78: 0
A79: 69º | AB79: 0
A80: 70º | AB80: 0
A81: 71º | AB81: 0
A82: 72º | AB82: 0
A83: 73º | AB83: 0
A84: 74º | AB84: 0
A85: 75º | AB85: 0
A86: 76º | AB86: 0
A87: 77º | AB87: 0
A88: 78º | AB88: 0
A89: 79º | AB89: 0
A90: 80º | AB90: 0
A91: 81º | AB91: 0
A92: 82º | AB92: 0
A93: 83º | AB93: 0
A94: 84º | AB94: 0
A95: 85º | AB95: 0
A96: 86º | AB96: 0
A97: 87º | AB97: 0
A98: 88º | AB98: 0
A99: 89º | AB99: 0
A100: 90º | AB100: 0
B102: LEGENDA
B103: BONIFICAÇÃO POR ETAPA PARTICIPADA
B104: PARTICIPOU DE 1 ETAPA= | D104: 5
B105: PARTICIPOU DE 2 ETAPAS= | D105: 1X+10
B106: PARTICIPOU DE 3 ETAPAS= | D106: 2X+15
B107: PARTICIPOU DE 4 ETAPAS= | D107: 3X+25
B108: PARTICIPOU DE 5 ETAPAS | D108: 4X+40
B109: PARTICIPOU DE 6 ETAPAS= | D109: 5X+50
B110: BONUS RECORD | D110: 20
B111: PROVA EM BRANCO | D111: NÃO TEVE ELIMINATORIAS

Sheet DTOP
C1: CLASSIFICAÇÃO OFICIAL DO CAMPEONATO BRASILEIRO 2013 DE ARRANCADA 402 M.
C5: Evento | D5: 1º | H5: 2º | L5: 3º | P5: 4º | T5: 5º | X5: 6º
C6: Local | D6: Velopark | H6: Curitiba | L6: VELOPARK | P6: VELOPARK | X6: VELOPARK
C7: Data | D7: 15 a 17/03/2013 | H7: 03 a 05/05/2013 | L7: 16 a 18/08/2013 | P7: 27 a 29/09/2013 | X7: 17/11
A9: DRAG TOP DT | D9: bonus | E9: bonus | F9: bonus | H9: bonus | I9: bonus | J9: bonus | L9: bonus | M9: bonus | N9: bonus | P9: bonus | Q9: bonus | R9: bonus | T9: bonus | U9: bonus | V9: bonus | X9: bonus | Y9: bonus | Z9: bonus
A10: POS | B10: PILOTO | C10: Nº | D10: partic. | E10: record | F10: classif. | G10: Prova | H10: partic. | I10: record | J10: classif. | K10: Prova | L10: partic. | M10: record | N10: classif. | O10: Prova | P10: partic. | Q10: record | R10: classif. | S10: Prova | T10: partic. | U10: record | V10: classif. | W10: Prova | X10: partic. | Y10: record | Z10: classif. | AA10: Prova | AB10: TOTAL
A11: 1º | B11: BRENO CASTANON | C11: 22 | D11: 0 | E11: 0 | F11: 0 | G11: 0 | H11: 0 | J11: 0 | K11: 0 | L11: X | N11: 80 | P11: X | R11: 80 | X11: 25 | Z11: 160 | AA11: 200 | AB11: =SUM(D11:AA11) -> 545
A12: 2º | AB12: 0
A13: 3º | AB13: 0
A14: 4º | AB14: 0
A15: 5º | AB15: 0
A16: 6º | AB16: 0
A17: 7º | AB17: 0
A18: 8º | AB18: 0
A19: 9º | AB19: 0
A20: 10º | AB20: 0
A21: 11º | AB21: 0
A22: 12º | AB22: 0
A23: 13º | AB23: 0
A24: 14º | AB24: 0
A25: 15º | AB25: 0
A26: 16º | AB26: 0
A27: 17º | AB27: 0
A28: 18º | AB28: 0
A29: 19º | AB29: 0
A30: 20º | AB30: 0
A31: 21º | AB31: 0
A32: 22º | AB32: 0
A33: 23º | AB33: 0
A34: 24º | AB34: 0
A35: 25º | AB35: 0
A36: 26º | AB36: 0
A37: 27º | AB37: 0
A38: 28º | AB38: 0
A39: 29º | AB39: 0
A40: 30º | AB40: 0
A41: 31º | AB41: 0
A42: 32º | AB42: 0
A43: 33º | AB43: =SUM(D43:AA43) -> 0
A44: 34º | AB44: 0
A45: 35º | AB45: 0
A46: 36º | AB46: 0
A47: 37º | AB47: 0
A48: 38º | AB48: 0
A49: 39º | AB49: 0
A50: 40º | AB50: 0
A51: 41º | AB51: 0
A52: 42º | AB52: 0
A53: 43º | AB53: 0
A54: 44º | AB54: 0
A55: 45º | AB55: 0
A56: 46º | AB56: 0
A57: 47º | AB57: 0
A58: 48º | AB58: 0
A59: 49º | AB59: 0
A60: 50º | AB60: 0
A61: 51º | AB61: 0
A62: 52º | AB62: 0
A63: 53º | AB63: 0
A64: 54º | AB64: 0
A65: 55º | AB65: 0
A66: 56º | AB66: 0
A67: 57º | AB67: 0
A68: 58º | AB68: 0
A69: 59º | AB69: 0
A70: 60º | AB70: 0
A71: 61º | AB71: 0
A72: 62º | AB72: 0
A73: 63º | AB73: 0
A74: 64º | AB74: 0
A75: 65º | AB75: =SUM(D75:AA75) -> 0
A76: 66º | AB76: 0
A77: 67º | AB77: 0
A78: 68º | AB78: 0
A79: 69º | AB79: 0
A80: 70º | AB80: 0
A81: 71º | AB81: 0
A82: 72º | AB82: 0
A83: 73º | AB83: 0
A84: 74º | AB84: 0
A85: 75º | AB85: 0
A86: 76º | AB86: 0
A87: 77º | AB87: 0
A88: 78º | AB88: 0
A89: 79º | AB89: 0
A90: 80º | AB90: 0
A91: 81º | AB91: 0
A92: 82º | AB92: 0
A93: 83º | AB93: 0
A94: 84º | AB94: 0
A95: 85º | AB95: 0
A96: 86º | AB96: 0
A97: 87º | AB97: 0
A98: 88º | AB98: 0
A99: 89º | AB99: 0
A100: 90º | AB100: 0
B102: LEGENDA
B103: BONIFICAÇÃO POR ETAPA PARTICIPADA
B104: PARTICIPOU DE 1 ETAPA= | D104: 5
B105: PARTICIPOU DE 2 ETAPAS= | D105: 1X+10
B106: PARTICIPOU DE 3 ETAPAS= | D106: 2X+15
B107: PARTICIPOU DE 4 ETAPAS= | D107: 3X+25
B108: PARTICIPOU DE 5 ETAPAS | D108: 4X+40
B109: PARTICIPOU DE 6 ETAPAS= | D109: 5X+50
B110: BONUS RECORD | D110: 20
B111: PROVA EM BRANCO | D111: NÃO TEVE ELIMINATORIAS

Sheet Pontos
A1: =(ST!$C$2) -> CLASSIFICAÇÃO OFICIAL DO CAMPEONATO BRASILEIRO 2013 DE ARRANCADA 402 M.
A3: =(ST!$A$9) -> STANDARD - ST | F3: =(DO!$A$9) -> DIANTEIRA ORIGINAL DO | K3: =(TO!$A$9) -> TRASEIRA ORIGINAL -TO
A4: POS | B4: PILOTO | C4: Nº | D4: TOTAL | F4: POS | G4: PILOTO | H4: Nº | I4: TOTAL | K4: POS | L4: PILOTO | M4: Nº | N4: TOTAL
A5: 1º | B5: =(ST!$B$11) -> CLÓVIS WAECHTER | C5: =(ST!$C$11) -> 98 | D5: =(ST!$AB$11) -> 715 | F5: 1º | G5: =(DO!$B$11) -> JULIO DALLA ROSA | H5: =(DO!$C$11) -> 42 | I5: =(DO!$AB$11) -> 960 | K5: 1º | L5: =(TO!B$11) -> BRENO CASTAGNON | M5: =(TO!C$11) -> 22 | N5: =(TO!$AB$11) -> 665
A6: 2º | B6: =(ST!$B$12) -> EDUARDO ANDRETA | C6: =(ST!$C$12) -> 555 | D6: =(ST!$AB$12) -> 565 | F6: 2º | G6: =(DO!$B$12) -> MALTON PORTO | H6: =(DO!$C$12) -> 177 | I6: =(DO!$AB$12) -> 675 | K6: 2º | L6: =(TO!B$12) -> RAUL CORREIA | M6: =(TO!C$12) -> 101 | N6: =(TO!$AB$12) -> 590
A7: 3º | B7: =(ST!$B$13) -> LEANDRO SCHULTZ | C7: =(ST!$C$13) -> 96 | D7: =(ST!$AB$13) -> 520 | F7: 3º | G7: =(DO!$B$13) -> IVO LEAL | H7: =(DO!$C$13) -> 79 | I7: =(DO!$AB$13) -> 650 | K7: 3º | L7: =(TO!B$13) -> ALVARO DIAS | M7: =(TO!C$13) -> 7 | N7: =(TO!$AB$13) -> 560
A8: 4º | B8: =(ST!$B$14) -> MARCIO SOUZA | C8: =(ST!$C$14) -> 333 | D8: =(ST!$AB$14) -> 510 | F8: 4º | G8: =(DO!$B$14) -> PAULO SERGIO | H8: =(DO!$C$14) -> 728 | I8: =(DO!$AB$14) -> 260 | K8: 4º | L8: =(TO!B$14) -> CLAUDIO CASTAGNON | M8: =(TO!C$14) -> 12 | N8: =(TO!$AB$14) -> 550
A9: 5º | B9: =(ST!$B$15) -> OBERDAN TAETI | C9: =(ST!$C$15) -> 77 | D9: =(ST!$AB$15) -> 420 | F9: 5º | G9: =(DO!$B$15) -> WELLINGTON MARCELINO | H9: =(DO!$C$15) -> 2301 | I9: =(DO!$AB$15) -> 230 | K9: 5º | L9: =(TO!B$15) -> THIAGO FERREIRA | M9: =(TO!C$15) -> 200 | N9: =(TO!$AB$15) -> 465
A11: =(DTC!$A$9) -> DIANTEIRA TURBO C - DTC | F11: =(DTB!$A$9) -> DIANTEIRA TURBO B DTB | K11: =(DTA!$A$9) -> DIANTEIRA TURBO A DTA
A12: POS | B12: PILOTO | C12: Nº | D12: TOTAL | F12: POS | G12: PILOTO | H12: Nº | I12: TOTAL | K12: POS | L12: PILOTO | M12: Nº | N12: TOTAL
A13: 1º | B13: =(DTC!$B$11) -> GINESIO CASSOL | C13: =(DTC!$C$11) -> 286 | D13: =(DTC!$AB$11) -> 755 | F13: 1º | G13: =(DTB!$B$11) -> VILSON FERREIRA | H13: =(DTB!$C$11) -> 231 | I13: =(DTB!$AB$11) -> 810 | K13: 1º | L13: =(DTA!$B$11) -> VALMOR MENEGATTI | M13: =(DTA!$C$11) -> 5 | N13: =(DTA!$AB$11) -> 740
A14: 2º | B14: =(DTC!$B$12) -> ROGERIO BERNARDI | C14: =(DTC!$C$12) -> 1322 | D14: =(DTC!$AB$12) -> 730 | F14: 2º | G14: =(DTB!$B$12) -> THIAGO VASCONCELOS | H14: =(DTB!$C$12) -> 712 | I14: =(DTB!$AB$12) -> 650 | K14: 2º | L14: =(DTA!$B$12) -> RENATO BRIZOLARI | M14: =(DTA!$C$12) -> 330 | N14: =(DTA!$AB$12) -> 625
A15: 3º | B15: =(DTC!$B$13) -> FABIANO SERRO | C15: =(DTC!$C$13) -> 336 | D15: =(DTC!$AB$13) -> 630 | F15: 3º | G15: =(DTB!$B$13) -> WLADMIR CARRANZA | H15: =(DTB!$C$13) -> 284 | I15: =(DTB!$AB$13) -> 560 | K15: 3º | L15: =(DTA!$B$13) -> LEANDRO CASTILHOS | M15: =(DTA!$C$13) -> 778 | N15: =(DTA!$AB$13) -> 580
A16: 4º | B16: =(DTC!$B$14) -> FABIANO BORTONCELLO | C16: =(DTC!$C$14) -> 168 | D16: =(DTC!$AB$14) -> 440 | F16: 4º | G16: =(DTB!$B$14) -> CHARLES USCOCOVICH | H16: =(DTB!$C$14) -> 34 | I16: =(DTB!$AB$14) -> 455 | K16: 4º | L16: =(DTA!$B$14) -> PAULO E. S. RAMOS | M16: =(DTA!$C$14) -> 222 | N16: =(DTA!$AB$14) -> 575
A17: 5º | B17: =(DTC!$B$15) -> MICHEL GOLIN | C17: =(DTC!$C$15) -> 288 | D17: =(DTC!$AB$15) -> 370 | F17: 5º | G17: =(DTB!$B$15) -> JOACIR CORDOVA | H17: =(DTB!$C$15) -> 2009 | I17: =(DTB!$AB$15) -> 445 | K17: 5º | L17: =(DTA!$B$15) -> ADRIANO SALTON | M17: =(DTA!$C$15) -> 31 | N17: =(DTA!$AB$15) -> 555
A19: =(TT!$A$9) -> CATEGORIA TT | F19: =(DS!$A$9) -> DIANTEIRA SUPER - DS | K19: =(TS!$A$9) -> TRASEIRA SUPER TS
A20: POS | B20: PILOTO | C20: Nº | D20: TOTAL | F20: POS | G20: PILOTO | H20: Nº | I20: TOTAL | K20: POS | L20: PILOTO | M20: Nº | N20: TOTAL
A21: 1º | B21: =(TT!$B$11) -> CLEVERSON BERTOLIM | C21: =(TT!$C$11) -> 875 | D21: =(TT!$AB$11) -> 775 | F21: 1º | G21: =(DS!$B$11) -> HARRISSON MARQUES | H21: =(DS!$C$11) -> 222 | I21: =(DS!$AB$11) -> 645 | K21: 1º | L21: =(TS!$B$11) -> GUSTAVO CASTANON | M21: =(TS!$C$11) -> 10 | N21: =(TS!$AB$11) -> 950
A22: 2º | B22: =(TT!$B$12) -> FABRICIO CHICON | C22: =(TT!$C$12) -> 62 | D22: =(TT!$AB$12) -> 505 | F22: 2º | G22: =(DS!$B$12) -> RODRIGO BERNIERI | H22: =(DS!$C$12) -> 80 | I22: =(DS!$AB$12) -> 620 | K22: 2º | L22: =(TS!$B$12) -> MARCIO VALMOR JULIO | M22: =(TS!$C$12) -> 332 | N22: =(TS!$AB$12) -> 725
A23: 3º | B23: =(TT!$B$13) -> ANSELMO SEPP | C23: =(TT!$C$13) -> 1972 | D23: =(TT!$AB$13) -> 495 | F23: 3º | G23: =(DS!$B$13) -> VINICIUS BERTA | H23: =(DS!$C$13) -> 119 | I23: =(DS!$AB$13) -> 490 | K23: 3º | L23: =(TS!$B$13) -> MANOEL CASTANON | M23: =(TS!$C$13) -> 11 | N23: =(TS!$AB$13) -> 220
A24: 4º | B24: =(TT!$B$14) -> CELSO CAMARGO | C24: =(TT!$C$14) -> 101 | D24: =(TT!$AB$14) -> 485 | F24: 4º | G24: =(DS!$B$14) -> EVANIR FORTUNATO | H24: =(DS!$C$14) -> 747 | I24: =(DS!$AB$14) -> 355 | K24: 4º | L24: =(TS!$B$14) -> RODERJAN | M24: =(TS!$C$14) -> 88 | N24: =(TS!$AB$14) -> 160
A25: 5º | B25: =(TT!$B$15) -> CRISTIAN CORDEIRO | C25: =(TT!$C$15) -> 333 | D25: =(TT!$AB$15) -> 345 | F25: 5º | G25: =(DS!$B$15) -> LUIZ BONACORSO | H25: =(DS!$C$15) -> 2100 | I25: =(DS!$AB$15) -> 285 | K25: 5º | L25: =(TS!$B$15) -> JAIRO DALLA VALLE | M25: =(TS!$C$15) -> 35 | N25: =(TS!$AB$15) -> 135
A27: =(FLD!$A$9) -> FORÇA LIVRE DIANTEIRA FLD | F27: =(STT!$A$9) -> STREET TRAÇÃO TRASEIRA STT | K27: =(FLT!$A$9) -> FORÇA LIVRE TRASEIRA FLT
A28: POS | B28: PILOTO | C28: Nº | D28: TOTAL | F28: POS | G28: PILOTO | H28: Nº | I28: TOTAL | K28: POS | L28: PILOTO | M28: Nº | N28: TOTAL
A29: 1º | B29: =(FLD!$B$11) -> AIRTON CARRARO | C29: =(FLD!$C$11) -> 9 | D29: =(FLD!$AB$11) -> 800 | F29: 1º | G29: =(STT!$B$11) -> GIOVANI CHEMIN | H29: =(STT!$C$11) -> 1979 | I29: =(STT!$AB$11) -> 825 | K29: 1º | L29: =(FLT!$B$11) -> ANDERSON MALTEZO | M29: =(FLT!$C$11) -> 11 | N29: =(FLT!$AB$11) -> 880
A30: 2º | B30: =(FLD!$B$12) -> LUIZ DONATO | C30: =(FLD!$C$12) -> 494 | D30: =(FLD!$AB$12) -> 700 | F30: 2º | G30: =(STT!$B$12) -> CRISTIAN CORDEIRO | H30: =(STT!$C$12) -> 332 | I30: =(STT!$AB$12) -> 725 | K30: 2º | L30: =(FLT!$B$12) -> ALEX SANDER SILVA | M30: =(FLT!$C$12) -> 181 | N30: =(FLT!$AB$12) -> 595
A31: 3º | B31: =(FLD!$B$13) -> JÕAO TASSO | C31: =(FLD!$C$13) -> 39 | D31: =(FLD!$AB$13) -> 490 | F31: 3º | G31: =(STT!$B$13) -> ARIELSON MUTERLE | H31: =(STT!$C$13) -> 167 | I31: =(STT!$AB$13) -> 710 | K31: 3º | L31: =(FLT!$B$13) -> GLEISON MOREIRA | M31: =(FLT!$C$13) -> 2 | N31: =(FLT!$AB$13) -> 490
A32: 4º | B32: =(FLD!$B$14) -> JADER KROLOW | C32: =(FLD!$C$14) -> 938 | D32: =(FLD!$AB$14) -> 425 | F32: 4º | G32: =(STT!$B$14) -> VILSON FERREORA | H32: =(STT!$C$14) -> 2 | I32: =(STT!$AB$14) -> 430 | K32: 4º | L32: =(FLT!$B$14) -> MARCOS MARTINS | M32: =(FLT!$C$14) -> 10 | N32: =(FLT!$AB$14) -> 440
A33: 5º | B33: =(FLD!$B$15) -> JOSÉ R. PASQUALETE | C33: =(FLD!$C$15) -> 55 | D33: =(FLD!$AB$15) -> 395 | F33: 5º | G33: =(STT!$B$15) -> PEDRO PISKA | H33: =(STT!$C$15) -> 1978 | I33: =(STT!$AB$15) -> 310 | K33: 5º | L33: =(FLT!$B$15) -> VALDEMIR BORBA | M33: =(FLT!$C$15) -> 197 | N33: =(FLT!$AB$15) -> 385
A35: =(XTM!$A$9) -> XTM 10.5 | F35: =(PM!$A$9) -> PRO MOD | K35: =(DL!$A$9) -> DRAGSTER LIGTH
A36: POS | B36: PILOTO | C36: Nº | D36: TOTAL | F36: POS | G36: PILOTO | H36: Nº | I36: TOTAL | K36: POS | L36: PILOTO | M36: Nº | N36: TOTAL
A37: 1º | B37: =(XTM!$B$11) -> CRISTIANO JULIO | C37: =(XTM!$C$11) -> 331 | D37: =(XTM!$AB$11) -> 850 | F37: 1º | G37: =(PM!$B$11) -> RODERJAN BUSATO | H37: =(PM!$C$11) -> 174 | I37: =(PM!$AB$11) -> 1030 | K37: 1º | L37: =(DL!$B$11) -> MANOEL CASTANON | M37: =(DL!$C$11) -> 11 | N37: =(DL!$AB$11) -> 915
A38: 2º | B38: =(XTM!$B$12) -> DANIEL RANIOWSKI | C38: =(XTM!$C$12) -> 17 | D38: =(XTM!$AB$12) -> 575 | F38: 2º | G38: =(PM!$B$12) -> ANTONIO ROSSALVO | H38: =(PM!$C$12) -> 777 | I38: =(PM!$AB$12) -> 160 | K38: 2º | L38: =(DL!$B$12) -> MARCELO GRIEBLER | M38: =(DL!$C$12) -> 48 | N38: =(DL!$AB$12) -> 505
A39: 3º | B39: =(XTM!$B$13) -> RAFAEL ANTONETTI | C39: =(XTM!$C$13) -> 77 | D39: =(XTM!$AB$13) -> 540 | F39: 3º | G39: =(PM!$B$13) -> FABIO COSTA | H39: =(PM!$C$13) -> 21 | I39: =(PM!$AB$13) -> 80 | K39: 3º | L39: =(DL!$B$13) -> JADER KROLOW | M39: =(DL!$C$13) -> 938 | N39: =(DL!$AB$13) -> 415
A40: 4º | B40: =(XTM!$B$14) -> GELSON DIAS SILVA | C40: =(XTM!$C$14) -> 11 | D40: =(XTM!$AB$14) -> 395 | F40: 4º | G40: =(PM!$B$14) -> ANDREY JASPER | H40: =(PM!$C$14) -> 75 | I40: =(PM!$AB$14) -> 75 | K40: 4º | L40: =(DL!$B$14) -> EDER CARDOSO | M40: =(DL!$C$14) -> 200 | N40: =(DL!$AB$14) -> 365
A41: 5º | B41: =(XTM!$B$15) -> CARLOS DAUD | C41: =(XTM!$C$15) -> 245 | D41: =(XTM!$AB$15) -> 385 | F41: 5º | G41: =(PM!$B$15) -> RAMON TOMAS | H41: =(PM!$C$15) -> 22 | I41: =(PM!$AB$15) -> 70 | K41: 5º | L41: =(DL!$B$15) -> AIRTON CARRARO | M41: =(DL!$C$15) -> 7 | N41: =(DL!$AB$15) -> 355
A43: =(DJ!$A$9) -> DRAG JUNIOR | F43: =(DTOP!$A$9) -> DRAG TOP DT
A44: POS | B44: PILOTO | C44: Nº | D44: TOTAL | F44: POS | G44: PILOTO | H44: Nº | I44: TOTAL | K44: POS | L44: PILOTO | M44: Nº | N44: TOTAL
A45: 1º | B45: =(DJ!$B$11) -> FELIPE LUNA | C45: =(DJ!$C$11) -> 0 | D45: =(DJ!$AB$11) -> 105 | F45: 1º | G45: =(DTOP!$B$11) -> BRENO CASTANON | H45: =(DTOP!$C$11) -> 22 | I45: =(DTOP!$AB$11) -> 545 | K45: 1º
A46: 2º | B46: =(DJ!$B$12) -> THOMAS SILVA | C46: =(DJ!$C$12) -> 121 | D46: =(DJ!$AB$12) -> 85 | F46: 2º | G46: =(DTOP!$B$12) -> 0 | H46: =(DTOP!$C$12) -> 0 | I46: =(DTOP!$AB$12) -> 0 | K46: 2º
A47: 3º | B47: =(DJ!$B$13) -> 0 | C47: =(DJ!$C$13) -> 0 | D47: =(DJ!$AB$13) -> 0 | F47: 3º | G47: =(DTOP!$B$13) -> 0 | H47: =(DTOP!$C$13) -> 0 | I47: =(DTOP!$AB$13) -> 0 | K47: 3º
A48: 4º | B48: =(DJ!$B$14) -> 0 | C48: =(DJ!$C$14) -> 0 | D48: =(DJ!$AB$14) -> 0 | F48: 4º | G48: =(DTOP!$B$14) -> 0 | H48: =(DTOP!$C$14) -> 0 | I48: =(DTOP!$AB$14) -> 0 | K48: 4º
A49: 5º | B49: =(DJ!$B$15) -> 0 | C49: =(DJ!$C$15) -> 0 | D49: =(DJ!$AB$15) -> 0 | F49: 5º | G49: =(DTOP!$B$15) -> 0 | H49: =(DTOP!$C$15) -> 0 | I49: =(DTOP!$AB$15) -> 0 | K49: 5º
